{"text_format":"1","workbook":"xlsx","n_sheets":30,"sheets":["冊子表紙","目次","達成度評価ｼｰﾄ表紙","卒業時の人物像等中表紙","卒業時の人物像","学習・教育到達目標と基本項目","達成度総合評価基準表紙","達成度総合評価基準","授業科目の流れ中表紙","授業科目の流れⅠ","授業科目の流れⅡ","語学・教養・専門科目一覧中表紙","英語","教養","専門","科目外","【 達成度総合評価報告・学習計画書 】","達成度自己評価表表紙","【 教養 】","【 視点 】","【 倫理 】","【 基礎 】","【 専門 】","【 開発 】","【 国際 】","【 論理 】","【 自発 】","【 計画 】","【 ﾘｰﾀﾞｰ 】","変更履歴"],"not_rendered":{"charts":0,"images":4,"macros":1,"external_links":1,"defined_names":28,"comments":0,"pivot_tables":0},"unopened":[],"bounds":{"document_bytes":16777216,"sheet_cells":100000,"rows_first":2000,"rows_last":500,"rows_between":2000,"halvings":0,"cell_chars":16384,"cell_head_chars":4096},"cells_cut":0,"cells_raw":0,"read":"whole","date_system":"1900"}

{"sheet":"冊子表紙","index":0,"n_rows":6,"n_cols":3,"rows_kept":6,"cut":false,"hidden":false,"merged":[[6,2,6,14],[7,0,7,14],[4,0,4,14],[0,0,0,14],[1,0,1,14],[2,0,2,14],[3,0,3,14],[5,2,5,14]]}
[]
["技術者への道標 2025"]
[]
["令和7年度入学生用"]
[]
[null,null,"京都工芸繊維大学　工芸科学部　設計工学域　機械工学課程"]

{"sheet":"目次","index":1,"n_rows":20,"n_cols":13,"rows_kept":20,"cut":false,"hidden":false,"merged":[[12,3,12,7],[12,8,12,11],[0,0,0,12],[1,1,1,12],[1,0,19,0],[4,5,4,11],[9,5,9,11],[5,2,5,8],[15,4,15,11],[19,2,19,4],[2,1,2,10],[4,2,4,4],[7,3,7,5],[5,9,5,11],[9,2,9,4],[13,6,13,11],[3,1,3,6],[10,2,10,9],[19,5,19,11],[11,3,11,10],[7,6,7,11],[6,7,6,11],[18,7,18,11],[6,3,6,6],[16,4,16,11],[14,4,14,11],[10,10,10,11],[8,5,8,11],[13,2,13,5],[8,3,8,4],[18,2,18,6],[17,4,17,11]]}
[]
[null,"技術者への道標 2024　目次"]
[]
[null,"工芸科学部 設計工学域　機械工学課程"]
[null,null,"達成度評価シート",null,null,"・・・・・・・・・・・・・・・・・・・・・・・・・・・・・・・・・・・・・・・・・・・・・・・・",null,null,null,null,null,null,1]
[null,null,"卒業時の人物像，学習・教育到達目標",null,null,null,null,null,null,"・・・・・・・・・・・・・・・・・・・・・・・・・・・・・・・・・・・・・・",null,null,3]
[null,null,null,"卒業時の人物像",null,null,null,"・・・・・・・・・・・・・・・・・・･･････・・・・・・・・・・・・・・・・",null,null,null,null,4]
[null,null,null,"学習・教育到達目標",null,null,"・・・・・・・・・・・・・・・・・・･･････・・・・・・・・・・・・・・・・",null,null,null,null,null,5]
[null,null,null,"基本項目",null,"・・・・・・・・・・・・・・・・・・・・・・・・・・・・・・・・・・・・・・・・・・・・・・・・",null,null,null,null,null,null,6]
[null,null,"達成度総合評価基準",null,null,"・・・・・・・・・・・・・・・・・・・・・・・・・・・・・・・・・・・・・・・・・・・・・",null,null,null,null,null,null,7]
[null,null,"学習・教育到達目標を達成するために必要な授業科目の流れ",null,null,null,null,null,null,null,"・・・・・・・・・・・・",null,13]
[null,null,null,"学習・教育到達目標を達成するために必要な授業科目の流れ",null,null,null,null,null,null,null,"・・・・・",14]
[null,null,null,"機械工学課程科目間相互関係図",null,null,null,null,"・・・・・・・・・・・・・・・・・・・・・・・・",null,null,null,15]
[null,null,"英語・教養・専門科目一覧",null,null,null,"・・・・・・・・・・・・・・・・・・・・・・・・・・・・・・・・・・・・・・・",null,null,null,null,null,17]
[null,null,null,"英語","・・・・・・・・・・・・・・・・・・・・・・・・・・・・・・・・・・・・・・・・・・・・・・・・・・・・",null,null,null,null,null,null,null,18]
[null,null,null,"教養","・・・・・・・・・・・・・・・・・・・・・・・・・・・・・・・・・・・・・・・・・・・・・・・・・・・・",null,null,null,null,null,null,null,19]
[null,null,null,"専門","・・・・・・・・・・・・・・・・・・・・・・・・・・・・・・・・・・・・・・・・・・・・・・・・・・・・",null,null,null,null,null,null,null,21]
[null,null,null,"科目外","・・・・・・・・・・・・・・・・・・・・・・・・・・・・・・・・・・・・・・・・・・・・・・・・・・・・",null,null,null,null,null,null,null,22]
[null,null,"達成度総合評価報告・学習計画書",null,null,null,null,"・・・・・・・・・・・・・・・・・・・・・・・・・・・・・・・・",null,null,null,null,23]
[null,null,"達成度自己評価表",null,null,"・・・・・・・・・・・・・・・・・・・・・・・・・・・・・・・・・・・・・・・・・・・・・",null,null,null,null,null,null,25]

{"sheet":"達成度評価ｼｰﾄ表紙","index":2,"n_rows":6,"n_cols":4,"rows_kept":6,"cut":false,"hidden":false,"merged":[[6,0,6,14],[5,0,5,2],[1,0,1,14],[0,0,0,14],[2,0,2,14],[3,0,3,14],[4,0,4,14],[5,3,5,14]]}
[]
["【 達成度評価シート 】"]
[]
["令和7年度入学生用"]
[]
[null,null,null,"京都工芸繊維大学　工芸科学部　設計工学域　機械工学課程"]

{"sheet":"卒業時の人物像等中表紙","index":3,"n_rows":4,"n_cols":1,"rows_kept":4,"cut":false,"hidden":false,"merged":[[0,0,0,14],[1,0,1,14],[2,0,2,14],[3,0,4,14]]}
[]
["卒業時の人物像，学習・教育到達目標"]
[]
["令和7年度入学生用"]

{"sheet":"卒業時の人物像","index":4,"n_rows":4,"n_cols":1,"rows_kept":4,"cut":false,"hidden":false,"merged":[[6,0,6,14],[7,0,7,14],[0,0,0,14],[1,0,1,14],[2,0,2,14],[3,0,3,14],[4,0,4,14],[5,0,5,14]]}
[]
["平成14年3月27日制定，令和3年7月29日改訂"]
["【卒業時の人物像】"]
["　単に機械工学に係る個々の専門知識を習得するだけでなく，それらを統合させる能力や，科学技術の発展の方向や時代と社会の変化の動向を把握し，まだ想像されていない新しい製品やシステムを思い描き，それを具現化する行動力，さらには，自身の国籍に拘ることなく，多様性の受容と柔軟なコミュニケーションを通じた世界変化への洞察力を身に着けた機械工学に係る新価値を創造する高度専門技術者や研究者．"]

{"sheet":"学習・教育到達目標と基本項目","index":5,"n_rows":43,"n_cols":7,"rows_kept":43,"cut":false,"hidden":false,"merged":[[19,0,19,14],[39,0,40,0],[38,1,38,2],[31,5,40,5],[32,0,32,4],[36,0,36,4],[23,0,23,14],[34,1,34,4],[31,6,40,15],[41,6,41,14],[41,0,46,5],[24,0,24,14],[25,0,25,14],[26,0,26,14],[37,0,37,4],[38,3,38,4],[33,1,33,4],[31,0,31,4],[39,3,40,4],[42,6,49,14],[13,0,13,14],[10,1,10,14],[1,0,1,14],[2,0,2,14],[5,0,5,14],[0,0,0,14],[7,0,7,14],[11,0,11,14],[8,1,8,14],[9,0,9,14],[15,1,15,14],[16,0,16,14],[3,0,3,14],[4,0,4,14],[30,0,30,14],[18,0,18,13],[21,0,21,14],[22,0,22,14],[29,0,29,14],[28,0,28,14],[6,0,6,14],[27,1,27,14],[12,0,12,14],[17,1,17,14],[20,0,20,14],[14,0,14,14]]}
["平成14年3月27日制定，令和2年1月30日改定"]
["卒業時の人物像に沿った人材を育成するため，以下の学習・教育到達目標を定めています．"]
[]
["【 学習・教育到達目標 】"]
[]
["Ａ. 豊かな教養と地球的視点を備え，技術者の社会的責任を認識できる．"]
["　（１）スポーツや芸術に慣れ親しみ，人間性豊かな思考のできる教養を備える．"]
["　（２）地球的視点で物事を考える素養と能力を有する．"]
[null,"解説 ： ここで言う「地球的視点で物事を考える」とは，「歴史や文化，習慣や風土，あるいは価値観などの多様性を学ぶことで，幸せや豊かさの概念が多岐に渡ることを認識して，物事を考える」という意味である．"]
["　（３） 科学技術の発展とそれが自然環境，生命，社会などに及ぼす効果や影響を理解できる．"]
[null,"解説 ： 技術者の社会に対する責任（技術者倫理）と貢献について理解することも含む．"]
[]
["Ｂ. 幅広い基礎学力と専門知識を備える．"]
["　（１） 数学・物理・情報技術などの基礎学力を有する．"]
["　（２） 伝統的機械工学の専門知識を修得している．"]
[null,"解説 ： ここで言う「伝統的機械工学の専門知識」とは，長年，機械工学の根幹をなしてきた力学と機械設計の知識であり，現代の機械技術者にとっても習得しなければならない基本知識である．"]
["　（３） 幅広い専門知識を応用して，時代や社会の変化と要求に対応した新たな機械システムを構築できる能力を有する．"]
[null,"解説 ： ｢新たな機械システムを構築できる能力｣とは，現在の課題や問題を設定・発見する能力や，これらを解決するための構想力・創造力である．"]
[]
["Ｃ. 国際的に通用する表現力と論理性を備える．"]
["　（１） 国際的な場でのコミュニケーション能力を有する．"]
["　（２） 日本語によって論理的な記述，発表，討論ができる．"]
[]
["Ｄ. 自律的に判断し，問題を解決する能力を有する．"]
["　（１） 継続的に学習し，能力開発を自発的に行うことができる．"]
["　（２） 種々の条件の下で問題解決の可能性を追求し，計画的に目標を達成することができる．"]
["　（３） チームを構成してリーダーシップを発揮できる．"]
[null,"解説 ： ここで言うリーダーシップとは，演習や実習においては，班長としての役目を責任を持って果たすことで，それらの円滑な実施と目的を遂行する能力を，また，カリキュラム外では，他分野の人とチームを構成し，協働してチームの目的を遂行する能力を言う．特に，後者については，自発的学習としてこれを行うことを強く求める．"]
[]
["\n上記の各目標に対して達成度総合評価基準が定められています．この基準を達成するために，達成度評価対象が定められ，その達成度評価方法と評価基準が規定されています．"]
[]
[" 【 基本項目：令和7年度入学生用 】",null,null,null,null,null,"・入力項目は，背景色が黄色の部分のみです．\n・『英語』，『教養』，『専門』，『科目外』の各シートの黄色背景色部分を入力して下さい．成績点は，S=30点，A+=25点，A=20点，B+=15点，B=10点，C+=5点，C= 0点です．課目外の「達成状況に対する自己評価 （-5点～5点)」も総合評価に反映されますので，入力するようにしてください．\n・全てのシートの入力完了後，【達成度総合評価報告・学習計画書 】シートの『提出ﾌｧｲﾙの出力』ボタンを押して出力し，出力ファイルをガイダンスでの指示に従って所定の所へ提出して下さい．\n・『提出ﾌｧｲﾙの印刷』ボタンを押すと，【達成度総合評価報告・学習計画書】が印刷されます．これをガイダンスでの指示に従って所定の所へ提出して下さい．また，控えを保存して下さい．\n・『今期の登録単位一覧』ボタンを押すと，登録単位一覧が出力されます．\n・『これまでの取得単位一覧』ボタンを押すと，これまでの取得単位一覧が出力されます．"]
[]
["学籍番号",23123099]
["氏　　名","工繊一郎"]
["区　　分","一般",1,"地域創生Tech"]
["(該当する区分に1を入力)"]
[]
["年　　次",2]
["学　　期","前学期",null,"(該当する学期に1を入力)"]
[null,"後学期",1]
[]
[null,null,null,null,null,null,"・卒業要件が満足されれば，達成要件の達成率は全て100%になります．\n・総合評価点は，達成要件の達成率60点，自発的学習を含めた自己デザインによる学習による実現度40点の総合点として最大100点で与えられます．自己デザイン学習による実現度に関しては，取得単位が全てSの成績であり，単位外の達成度評価に関わる項目も全て満足すると40点となるように設計されています．自発的学習に関する自己評価点も総合評価点に影響を与えます．なお，必修科目を開講年次に取得すること，総単位数に関する項目では総単位数が多いことも加点対象となります．\n・このようにして算出される総合評価点が６０点以上で合格となります．"]

{"sheet":"達成度総合評価基準表紙","index":6,"n_rows":4,"n_cols":1,"rows_kept":4,"cut":false,"hidden":false,"merged":[[4,0,4,14],[1,0,1,14],[0,0,0,14],[2,0,2,14],[3,0,3,14]]}
[]
["達成度総合評価基準"]
[]
["令和7年度入学生用"]

{"sheet":"達成度総合評価基準","index":7,"n_rows":109,"n_cols":4,"rows_kept":109,"cut":false,"hidden":false,"merged":[[83,0,83,3],[108,0,108,3],[90,0,90,2],[97,0,97,2],[67,0,67,3],[101,1,102,1],[80,1,81,1],[70,3,71,3],[78,1,79,1],[80,0,81,0],[93,0,94,0],[69,0,69,3],[68,0,68,3],[98,0,98,3],[85,0,85,2],[6,0,6,3],[5,0,5,3],[7,0,7,3],[25,0,25,3],[28,1,29,1],[15,0,15,3],[16,0,16,3],[17,0,17,3],[24,0,24,3],[9,1,11,1],[26,0,26,3],[0,0,0,3],[2,0,2,3],[1,0,1,3],[3,0,3,3],[4,0,4,3],[34,0,34,3],[61,0,62,0],[75,0,75,3],[63,2,64,2],[35,0,35,3],[56,0,56,3],[57,0,57,3],[55,0,55,3],[36,0,36,3],[37,0,37,3],[44,0,44,3],[45,0,45,3],[42,0,43,0],[63,0,65,0],[46,0,46,3],[59,0,60,0]]}
["平成15年10月2日制定，令和6年3月31日改定"]
["【 達成度総合評価基準 】（令和7年度入学生用）　　　　　　　　　　　　"]
[]
["　前ページの学習・教育到達目標で解りにくい点について解説するともに，達成度を自己評価するための達成度総合評価基準を定めています．学生は個々人が「自己デザイン」した学習計画によって，それぞれが描いた形で学習・教育到達目標の達成を目指しますが，目標達成の基礎になる共通の指針として「達成要件」を定めています．学生は「達成要件」を満足する形で学習計画を「自己デザイン」し，計画に沿って学習を進めます．さらに進捗を把握し，必要に応じて計画を修正するために，半期ごとに「自己デザイン」による学習・教育到達目標の実現度を評価しながら，次の半期の学習をデザインするシステムとなっています．\n　学習・教育到達目標の達成度は「達成要件」の達成率と「自己デザイン」による実現度による総合評価で測ります．達成度総合評価における合格基準（達成度総合評価基準）を60点とし，最終的に全ての学習・教育到達目標に対する総合評価点が60点以上で合格となります．ただし，学生は合格基準を満足する必要はありますが，全ての学習・教育到達目標の総合評価点を100点にすることを目的に「自己デザイン」するのではありません．総合評価方法にはそれぞれの学習・教育到達目標に対する課程からのメッセージが込められていますが，それらを念頭に置きながら学生は自分の志向に沿って「自己デザイン」し，それぞれの形で自己の実現を目指します．そのため，最終的な達成度総合評価点はそれぞれの学生が卒業までに達成した成果が多様な形で反映されたものになるでしょう．\n　なお，達成度評価対象欄に《 》が付けられている科目は，複数の学習・教育到達目標に関係する科目の中で「自己デザイン要件」に単位取得の前提となる評価項目が定められているものです．また，各学習・教育到達目標と併せて示している【 】内の記述はそれぞれの学習・教育到達目標の略称です．"]
[]
["Ａ． 豊かな教養と地球的視点を備え，技術者の社会的責任を認識できる．"]
[]
["（1）スポーツや芸術に慣れ親しみ，人間性豊かな思考のできる教養を備える．【 教養 】"]
["達成度評価対象","達成要件","実現度評価方法および基準"]
["基盤教養科目の｢人と文化｣に属する科目","左記科目より6単位以上取得する．","左記科目より2単位以上を好成績で取得する．"]
["基盤教養科目の｢人と社会｣に属する科目",null,"左記科目より2単位以上を好成績で取得する．"]
["基盤教養科目の｢人と自然｣に属する科目",null,"左記科目より2単位以上を好成績で取得する．"]
["実践教養科目の｢心身の健康｣に属する科目","－","左記科目より2単位以上を好成績で取得する．"]
["高年次配当科目","－","左記科目のうちA(1)に関連する科目より2単位以上を好成績で取得する．"]
["スポーツや芸術等に係る身体的もしくは創作的な活動（サークル，イベント参加，趣味，レジャー等）","－","スポーツや芸術等に係る身体的もしくは創作的な活動を実施する．"]
[]
["（2）地球的視点で物事を考える素養と能力を有する．【 視点 】"]
["解説 ： ここで言う「地球的視点で物事を考える」とは，「歴史や文化，習慣や風土，あるいは価値観などの多様性を学ぶことで，幸せや豊かさの概念が多岐に渡ることを認識して，物事を考える」という意味である．"]
["達成度評価対象","達成要件","実現度評価方法および基準"]
["実践教養科目","左記科目より10単位以上取得する．","左記科目を好成績で単位取得する．"]
["高年次配当科目","左記科目より2単位以上取得する．","左記科目を好成績で単位取得する．"]
["全学共通科目","合計32単位以上取得する．","合計32単位以上取得する．"]
["《エンジニアのためのリテラシー》","与えられたテーマを地球的視点から考えて調査，考察し，プレゼンテーション資料を作成する課題に合格して，単位取得する．","左記科目を開講年次に好成績で単位取得する．"]
["歴史，文化，価値観等に係る文化的な活動（読書，寺社仏閣・名跡探訪，旅行等）","－","歴史，文化，価値観等に係る文化的な活動を実施する．"]
[]
["（3）科学技術の発展とそれが自然環境，生命，社会などに及ぼす効果や影響を理解できる．【 倫理 】"]
["解説 ： 技術者の社会に対する責任（技術者倫理）と貢献について理解することも含む．"]
["達成度評価対象","達成要件","実現度評価方法および基準"]
["《機械工学実験Ⅰ》","技術者倫理に対する講義を受けた後，少人数の班に分かれ，具体的に与えられる事例に基づいて技術者の社会に対する責任と貢献に関して討論して考えをまとめてレポートを提出し，これに合格して，単位を取得する．","左記科目を開講年次に好成績で単位取得する．"]
["《機械工学実験Ⅱ》",null,"左記科目を開講年次に好成績で単位取得する．"]
["環境安全マネジメント活動","環境安全マネジメント講習に出席し，少なくとも1年間環境安全マネジメントプログラム実行計画書にしたがって活動する．","－"]
["実践教養科目の｢キャリア・技術者基盤｣に属する科目","－","左記科目より2単位以上を好成績で取得する．"]
["高年次配当科目","－","左記科目のうちA(3)に関連する科目より2単位以上を好成績で取得する．"]
["科学技術や自然環境，生命等に係る社会的な活動（読書，イベント参加，ボランティア等）","－","科学技術，自然環境，生命等に係る社会的な活動を実施する．"]
[]
["Ｂ. 幅広い基礎学力と専門知識を備える．"]
[]
["（１） 数学・物理・情報技術などの基礎学力を有する．【 基礎 】"]
[null,"達成度評価対象","達成要件","実現度評価方法および基準"]
["（ａ）数学の基礎を習得","基礎解析Ⅰ，線形代数学Ⅰ，統計数理","左記科目を単位取得する．","左記科目を開講年次に好成績で単位取得する．"]
["（ｂ）物理学の基礎を習得","工業力学Ⅰ，工業力学Ⅱ，物理学実験法及び基礎実験","左記科目を単位取得する．","左記科目を開講年次に好成績で単位取得する．"]
["（ｃ）情報技術の基礎を習得","データサイエンス","左記科目を単位取得する．","左記科目を開講年次に好成績で単位取得する．"]
["（ｄ）自然科学の基礎を習得","専門基礎科目の選択必修科目","左記科目より14単位以上取得する．","左記科目を好成績で単位取得する．"]
[null,"専門基礎科目","必修科目と選択必修科目を含め24単位以上を取得する．","必修科目と選択必修科目を含め24単位以上を取得する．"]
[]
["（２） 伝統的機械工学の専門知識を修得している．【 専門 】"]
["解説 ： ここで言う「伝統的機械工学の専門知識」とは，長年，機械工学の根幹をなしてきた力学と機械設計の知識であり，現代の機械技術者にとっても習得しなければならない基本知識である．"]
[null,"達成度評価対象","達成要件","実現度評価方法および基準"]
["（ａ）材料力学の知識を習得","材料力学Ⅰ及び演習，材料力学Ⅱ及び演習","左記科目を単位取得する．","左記科目を開講年次に好成績で単位取得する．"]
["（ｂ）熱力学の知識を習得","熱力学Ⅰ及び演習，熱力学Ⅱ及び演習","左記科目を単位取得する．","左記科目を開講年次に好成績で単位取得する．"]
["（ｃ）流体力学の知識を習得","流体力学Ⅰ及び演習，流体力学Ⅱ及び演習","左記科目を単位取得する．","左記科目を開講年次に好成績で単位取得する．"]
["（ｄ）機械力学の知識を習得","機械力学Ⅰ及び演習，機械力学Ⅱ及び演習","左記科目を単位取得する．","左記科目を開講年次に好成績で単位取得する．"]
["（ｅ）設計法の知識を習得","《創造設計製図演習》（一般）\n《地域創生課題セミナーⅠ》（地域）","左記科目を単位取得する．","左記科目を開講年次に好成績で単位取得する．"]
["（ｆ）製図法と規則を習得","機械製図法Ⅰ，機械製図法Ⅱ","左記科目を単位取得する．","左記科目を開講年次に好成績で単位取得する．"]
["（ｇ）加工法の知識を習得","《機械加工法及び実習》","左記科目を単位取得する．","左記科目を開講年次に好成績で単位取得する．"]
[]
["（３） 幅広い専門知識を応用して，時代や社会の変化と要求に対応した新たな機械システムを構築できる能力を有する．【 開発 】"]
["解説 ： ｢新たな機械システムを構築できる能力｣とは，現在の課題や問題を設定・発見する能力や，これらを解決するための構想力・創造力である．"]
[null,"達成度評価対象","達成要件","実現度評価方法および基準"]
["（ａ）機械システムに関する幅広い専門知識を習得","課程専門科目に属する選択科目","20単位以上取得する．","左記科目を好成績で単位取得する．"]
[null,"専門教育科目","必修科目，選択必修科目を含めて92単位以上を取得する．","必修科目，選択必修科目を含めて92単位以上を取得する．"]
["（ｂ）物づくりに関する最新の状況を知っている．","機械工学課程対象の工場見学，学術講演会及びインターンシップA，インターンシップB，ものづくりインターンシップⅠ，ものづくりインターンシップⅡ","工場見学，学術講演会のいずれかに参加するか，あるいはインターンシップA，インターンシップB，ものづくりインターンシップⅠ，ものづくりインターンシップⅡのいずれかの単位を取得する．","左記の工場見学，学術講演会等に参加するか，対象科目の単位を取得する．"]
[null,"上記以外の工場見学，学術講演会等","－","左記の工場見学，学術講演会等に参加する．"]
["（ｃ）実験等を遂行して，その結果を解析し，それを工学的に考察する能力を有している．","《機械工学実験Ⅰ》","全てのテーマについて実験を行って，それらの結果を工学的に考察した報告書を作成する課題に合格して，単位取得する．","左記科目を開講年次に好成績で単位取得する．"]
[null,"《機械工学実験Ⅱ》",null,"左記科目を開講年次に好成績で単位取得する．"]
[null,"《卒業研究》（一般）\n《卒業プロジェクト》（地域）","卒業研究の評価項目の1つである｢実験等を遂行して，その結果を解析し，それを工学的に考察する能力｣に対する評価項目に合格して，単位取得する．","左記科目について積極的に取り組み，工学的もしくは工業的に価値のある成果を創出する．（予定を含めて論文投稿もしくは学会発表を行う．）"]
[]
["Ｃ． 国際的に通用する表現力と論理性を備える．"]
[]
["（1）国際的な場でのコミュニケーション能力を有する．【 国際 】"]
["達成度評価対象","達成要件","実現度評価方法および基準"]
["英語教育科目","左記の必修科目8単位を取得する．","左記科目を開講年次に好成績で単位取得する．"]
["実践教養科目の｢言語・コミュニケーション｣に属する科目","－","左記科目より2単位以上を好成績で取得する．"]
["外国語の資格試験の受験，留学等の国際コミュニケーション能力を高める活動","－","外国語の資格試験等の受験や留学等の国際コミュニケーション能力を高める活動をする．"]
[]
["（２） 日本語によって論理的な記述，発表，討論ができる．【 論理 】"]
["達成度評価対象","達成要件","実現度評価方法および基準"]
["《エンジニアのためのリテラシー》","論理的なプレゼンテーションと活発な討論を行う課題に合格して，単位を取得すること．","左記科目を開講年次に好成績で単位取得する．"]
["《機械工学実験Ⅰ》","全ての実験テーマの報告書について，論理的に記述されているかどうかという評価項目に合格して，単位を取得すること．","左記科目を開講年次に好成績で単位取得する．"]
["《機械工学実験Ⅱ》",null,"左記科目を開講年次に好成績で単位取得する．"]
["《卒業研究》（一般）\n《卒業プロジェクト》（地域）","－","卒業論文を執筆し，単位を取得する．"]
[null,null,"投稿論文執筆もしくは学会発表等を行う（予定を含む）．"]
[]
["Ｄ． 自律的に判断し，問題を解決する能力を有する．"]
[]
["（１） 継続的に学習し，能力開発を自発的に行うことができる．【 自発 】"]
["達成度評価対象","達成要件","実現度評価方法および基準"]
["全科目","卒業までの学習計画を立て，134単位以上を取得する．","134単位以上を取得する．"]
["達成度総合評価報告・学習計画書","学期ごとに達成度総合評価報告・学習計画書を提出する．","該当の学期までの全ての達成度総合評価報告・学習計画書を提出する．また，4年次に卒業研究に着手し，4年次終了時に卒業する．"]
[]
["（２） 種々の条件の下で問題解決の可能性を追求し，計画的に目標を達成することができる．【 計画 】"]
["達成度評価対象","達成要件","実現度評価方法および基準"]
["《創造設計製図演習》（一般）\n《地域創生課題セミナーⅠ》（地域）","設定された制約条件の下で，自らのアイデアに基づいて新たなもの（機械）を構想・設計し，計画的に作業を進め，設計報告書・提出物を定められた期日までに提出して，単位を取得する．","左記科目を開講年次に好成績で単位取得する．"]
["《卒業研究》（一般）\n《卒業プロジェクト》（地域）","教員の指導の下で年間４５０時間以上の研究を実施する．","教員の指導の下で年間４５０時間以上の研究を実施する．"]
[null,"卒業研究・卒業プロジェクトの評価項目の１つである｢種々の条件の下で問題解決の可能性を追求し，計画的に目標を達成することができる能力｣に対する評価項目に合格して，単位を取得する．","－"]
["卒業研究記録","卒業研究に関する記録を作成し，提出する．","－"]
[]
["（３） チームを構成してリーダーシップを発揮できる．【 ﾘｰﾀﾞｰ】"]
["解説 ： ここで言うリーダーシップとは，演習や実習においては，班長としての役目を責任を持って果たすことで，それらの円滑な実施と目的を遂行する能力を，また，カリキュラム外では，他分野の人とチームを構成し，協働してチームの目的を遂行する能力を言う．特に，後者については，自発的学習としてこれを行うことを強く求める．"]
["達成度評価対象","達成要件","実現度評価方法および基準"]
["《機械加工法及び実習》","少なくとも１回，班長として実習の円滑な実施に務め，その際に生じた問題点などを考察した班長レポートを提出し，これに合格して，単位を取得する．","左記科目を開講年次に好成績で単位取得する．"]
["《機械工学実験Ⅰ》","少なくとも１回，班長として実験の円滑な実施とディスカッションの活発化に務め，その際に生じた問題点などを考察した班長レポートを提出し，これに合格して，単位を取得する．","左記科目を開講年次に好成績で単位取得する．"]
["《機械工学実験Ⅱ》",null,"左記科目を開講年次に好成績で単位取得する．"]
["《創造設計製図演習》（一般）\n《地域創生課題セミナーⅠ》（地域）","自身が責任を持って実施（設計，製作）した部分を，｢最終報告書（一般）｣「個人振り返りレポート（地域）」において明らかにし，チームの円滑な運営がなされたかどうか，また，それに寄与したかどうかという評価項目に合格して，単位を取得する．","左記科目を開講年次に好成績で単位取得する．"]
["実践教養科目の｢リーダーシップと経営戦略｣に属する科目","－","左記科目より2単位以上を好成績で取得する．"]
["高年次配当科目に属する「国際連携プロジェクトⅠ」および「国際連携プロジェクトⅡ」","－","左記科目より2単位以上を好成績で取得する．"]
["他分野の人と協働して目的を遂行するプロジェクト（学生プロジェクト等）","－","他分野の人と協働して目的を遂行するチームに参加する．"]
[]
["達成度総合評価基準：総合評価点は，達成要件の達成率×0.6＋自己デザインによる実現度×0.4で与えている．総合評価点が60点以上で合格とする．"]

{"sheet":"授業科目の流れ中表紙","index":8,"n_rows":4,"n_cols":1,"rows_kept":4,"cut":false,"hidden":false,"merged":[[4,0,4,14],[1,0,1,14],[0,0,0,14],[2,0,2,14],[3,0,3,14]]}
[]
["学習・教育到達目標を達成するために必要な授業科目の流れ"]
[]
["令和7年度入学生用"]

{"sheet":"授業科目の流れⅠ","index":9,"n_rows":121,"n_cols":25,"rows_kept":121,"cut":false,"hidden":false,"merged":[[18,1,42,1],[7,0,42,0],[6,5,6,7],[6,8,6,10],[2,0,2,26],[46,11,46,13],[44,2,44,25],[46,20,46,22],[46,23,46,25],[45,8,45,13],[45,14,45,19],[45,20,45,25],[46,8,46,10],[6,11,6,13],[46,17,46,19],[7,1,11,1],[12,1,14,1],[15,1,17,1],[91,5,91,7],[89,2,89,25],[0,0,0,24],[4,0,6,1],[5,2,5,7],[5,8,5,13],[4,2,4,25],[3,18,3,25],[6,20,6,22],[5,14,5,19],[6,17,6,19],[5,20,5,25],[1,0,1,25],[6,14,6,16],[6,23,6,25],[6,2,6,4],[91,23,91,25],[91,17,91,19],[91,20,91,22],[91,8,91,10],[91,11,91,13],[91,14,91,16],[45,2,45,7],[46,14,46,16],[46,2,46,4],[46,5,46,7],[44,0,46,1],[116,3,116,24],[115,0,121,1],[100,21,100,24],[106,3,106,24],[108,3,108,24],[102,0,104,1],[103,21,103,24],[92,0,101,0],[105,0,109,1],[99,1,101,1],[113,21,113,24],[111,21,111,24],[110,0,114,1],[92,1,98,1],[90,2,90,7],[90,8,90,13],[90,14,90,19],[90,20,90,25],[47,0,67,0],[47,1,49,1],[50,1,52,1],[56,1,58,1],[53,1,55,1],[59,1,61,1],[62,1,64,1],[65,1,67,1],[68,0,88,0],[89,0,91,1],[68,1,88,1],[91,2,91,4]]}
["学習・教育到達目標を達成するために必要な授業科目の流れ"]
[]
["(注)学習・教育到達目標A(1)【 教養 】，A(2)【 視点 】，A(3)【 倫理 】，C(1)【 国際 】と授業科目の関連性については，達成度評価シートの授業科目一覧を参照すること．"]
[null,null,null,null,null,null,null,null,null,null,null,null,null,null,null,null,null,null,"◎：関連の深い科目　　○：関連のある科目"]
["学習・教育到達目標",null,"授　　業　　科　　目　　名"]
[null,null,"1　年",null,null,null,null,null,"2　年",null,null,null,null,null,"3　年",null,null,null,null,null,"4　年"]
[null,null,"前 期",null,null,"後 期",null,null,"前 期",null,null,"後 期",null,null,"前 期",null,null,"後 期",null,null,"前 期",null,null,"後 期"]
["B(1)\n【 基礎 】","(a)"]
[null,null,null,"基礎解析Ⅰ(◎)",null,null,null,null,null,"統計数理(◎)"]
[]
[null,null,null,"線形代数学Ⅰ(◎)"]
[]
[null,"(b)"]
[null,null,null,"工業力学Ⅰ(◎)",null,null,"工業力学Ⅱ(◎)",null,null,null,null,null,"物理学実験法\n及び基礎実験(◎)"]
[]
[null,"(c)"]
[null,null,null,null,null,null,"AI・データサイエンスⅠ(○)",null,null,null,null,null,null,null,null,"データサイエンス\n(◎)"]
[]
[null,"(d)"]
[null,null,null,null,null,null,null,null,null,null,null,null,null,null,null,null,null,null,null,null,null,null,null,null,"データサイエンスの数理(○)"]
[]
[null,null,null,null,null,null,"基礎解析Ⅱ(○)",null,null,"解析学Ⅰ(○)",null,null,"解析学Ⅱ(○)",null,null,"応用数理(○)"]
[]
[null,null,null,"数学演習Ⅰ(○)",null,null,"数学演習Ⅱ(○)",null,null,"応用解析(○)",null,null,"数理解析(○)",null,null,null,null,null,null,null,null,null,null,null,"数理応用解析(○)"]
[]
[null,null,null,null,null,null,"線形代数学Ⅱ(○)",null,null,null,null,null,"応用幾何(○)",null,null,null,null,null,null,null,null,null,null,null,"数理応用幾何(○)"]
[]
[null,null,null,null,null,null,null,null,null,null,null,null,null,null,null,null,null,null,null,null,null,null,null,null,"数理応用代数(○)"]
[]
[null,null,null,"物理学Ⅰ(○)",null,null,null,null,null,"量子力学(○)",null,null,"統計力学(○)"]
[]
[null,null,null,null,null,null,"物理学Ⅱ(○)"]
[]
[null,null,null,null,null,null,null,null,null,null,null,null,null,null,null,"インターンシップ\nＡ, B(○)"]
[]
[null,null,null,null,null,null,"新先端ファイブロ科学(○)",null,null,null,null,null,null,null,null,null,null,null,"繊維科学概論(○)"]
[]
[null,null,null,null,null,null,null,null,null,null,null,null,null,null,null,null,null,null,"複合材料学(○)"]
[]
[null,null,null,null,null,null,null,null,null,null,null,null,null,null,null,null,null,null,"先端複合材料学(○)"]
[]
[null,null,null,null,null,null,null,null,null,null,null,null,null,null,null,null,null,null,"複合材料基礎実験(○)",null,null,"複合材料ものづくり実験(○)"]
[]
[]
["学習・教育到達目標",null,"授　　業　　科　　目　　名"]
[null,null,"1　年",null,null,null,null,null,"2　年",null,null,null,null,null,"3　年",null,null,null,null,null,"4　年"]
[null,null,"前 期",null,null,"後 期",null,null,"前 期",null,null,"後 期",null,null,"前 期",null,null,"後 期",null,null,"前 期",null,null,"後 期"]
["B(2)\n【 専門 】","(a)"]
[null,null,null,null,null,null,"材料力学Ⅰ\n及び演習(◎)",null,null,"材料力学Ⅱ\n及び演習(◎)"]
[]
[null,"(b)"]
[null,null,null,null,null,null,null,null,null,"熱力学Ⅰ\n及び演習(◎)",null,null,"熱力学Ⅱ\n及び演習(◎)"]
[]
[null,"(c)"]
[null,null,null,null,null,null,null,null,null,null,null,null,"流体力学Ⅰ\n及び演習(◎)",null,null,"流体力学Ⅱ\n及び演習(◎)"]
[]
[null,"(d)"]
[null,null,null,null,null,null,null,null,null,"機械力学Ⅰ\n及び演習(◎)",null,null,"機械力学Ⅱ\n及び演習(◎)"]
[]
[null,"(e)"]
[null,null,null,null,null,null,null,null,null,null,null,null,null,null,null,null,null,null,"創造設計製図演習（一般）(◎)\n地域創生課題セミナーⅠ（地域創生）(◎)"]
[]
[null,"(f)"]
[null,null,null,null,null,null,null,null,null,"機械製図法Ⅰ(◎)",null,null,"機械製図法Ⅱ(◎)"]
[]
[null,"(g)"]
[null,null,null,null,null,null,null,null,null,"機械加工法\n及び実習(◎)"]
[]
["B(3)\n 【 開発 】","(a)"]
[null,null,null,null,null,null,"計測基礎学(○)",null,null,null,null,null,null,null,null,"工業計測法(○)"]
[]
[null,null,null,null,null,null,null,null,null,null,null,null,null,null,null,null,null,null,null,null,null,"ロボティクス(○)"]
[]
[null,null,null,null,null,null,null,null,null,null,null,null,"システム制御\n理論(○)",null,null,null,null,null,"最適制御\nシステム(○)"]
[]
[null,null,null,null,null,null,null,null,null,"工業材料学(○)",null,null,null,null,null,"材料強度学(○)"]
[]
[null,null,null,null,null,null,null,null,null,null,null,null,"有限要素法(○)",null,null,"塑性力学(○)",null,null,"塑性加工学(○)"]
[]
[null,null,null,null,null,null,null,null,null,"切削・研削\n加工学(○)",null,null,null,null,null,"特殊加工学(○)"]
[]
[null,null,null,null,null,null,null,null,null,null,null,null,"ｺﾝﾋﾟｭｰﾀｼﾐｭﾚｰｼｮﾝ\n基礎学(○)",null,null,null,null,null,"熱エネルギー\n輸送現象(○)"]
[]
[null,null,null,null,null,null,null,null,null,null,null,null,"機械設計学(○)",null,null,"応用機械設計(○)"]
[]
[null,null,null,null,null,null,null,null,null,null,null,null,null,null,null,null,null,null,"計画工学(○)"]
[]
[null,null,null,null,null,null,null,null,null,null,null,null,null,null,null,null,null,null,"地域創生課題セミナーⅠ(○)",null,null,"地域創生課題セミナーⅡ(○)",null,null,"卒業論文(○)"]
[]
["学習・教育到達目標",null,"授　　業　　科　　目　　名"]
[null,null,"1　年",null,null,null,null,null,"2　年",null,null,null,null,null,"3　年",null,null,null,null,null,"4　年"]
[null,null,"前 期",null,null,"後 期",null,null,"前 期",null,null,"後 期",null,null,"前 期",null,null,"後 期",null,null,"前 期",null,null,"後 期"]
["B(3)\n【 開発 】","(b)"]
[null,null,null,null,null,null,null,null,null,null,null,null,null,null,null,"インターンシップ\nＡ, B(○)",null,null,"ものづくりインターンシップⅠ(○)",null,null,"ものづくりインターンシップⅡ・III(○)"]
[]
[null,null,null,null,null,null,null,null,null,null,null,null,null,null,null,null,null,null,"(工場見学）"]
[]
[null,null,null,null,null,null,null,null,null,null,null,null,null,null,null,null,null,null,"(学術講演会）"]
[]
[null,"(c)"]
[null,null,null,null,null,null,null,null,null,null,null,null,null,null,null,"機械工学実験\nⅠ(◎)",null,null,"機械工学実験\nⅡ(◎)",null,null,"卒業研究（一般）(◎)\n卒業プロジェクト（地域創生）(◎)"]
[]
["C(2)\n【 論理 】"]
[null,null,null,"エンジニアのため\nのリテラシー(◎)",null,null,null,null,null,null,null,null,null,null,null,"機械工学実験\nⅠ(◎)",null,null,"機械工学実験\nⅡ(◎)"]
[]
["D(1)\n【 自発 】"]
[null,null,null,"全科目(○)"]
[]
[null,null,null,"（達成度総合評価報告・学習計画書）"]
[]
["D(2)\n【 計画 】"]
[null,null,null,null,null,null,null,null,null,null,null,null,null,null,null,null,null,null,"創造設計製図演習（一般）(◎)\n地域創生課題セミナーⅠ（地域創生）(◎)",null,null,"卒業研究（一般）(◎)\n卒業プロジェクト（地域創生）(◎)"]
[]
[null,null,null,null,null,null,null,null,null,null,null,null,null,null,null,null,null,null,null,null,null,"（卒業研究記録)"]
[]
["D(3)\n【 ﾘｰﾀﾞｰ 】"]
[]
[]
[null,null,null,null,null,null,null,null,null,"機械加工法\n及び実習(◎)",null,null,null,null,null,null,null,null,"創造設計製図演習（一般）(◎)\n地域創生課題セミナーⅠ（地域創生）(◎)"]
[]
[null,null,null,null,null,null,null,null,null,null,null,null,null,null,null,"機械工学実験\nⅠ(◎)",null,null,"機械工学実験\nⅡ(◎)"]

{"sheet":"授業科目の流れⅡ","index":10,"n_rows":85,"n_cols":19,"rows_kept":85,"cut":false,"hidden":false,"merged":[[72,0,72,2],[9,12,9,14],[28,0,28,2],[32,0,32,2],[41,0,41,2],[48,0,48,2],[59,0,59,2],[8,12,8,14],[0,0,0,18],[2,0,2,14],[2,16,3,16],[2,18,3,18],[7,0,7,2]]}
["機械工学課程科目間相互関係図"]
[]
["学　部",null,null,null,null,null,null,null,null,null,null,null,null,null,null,null,"修士課程\n(MP，MD)",null,"博士課程"]
["1年前期",null,"1年後期",null,"2年前期",null,"2年後期",null,"3年前期",null,"3年後期",null,"4年前期",null,"4年後期"]
[null,null,null,null,null,null,null,null,null,null,null,null,null,null,null,null,"MP：機械物理学専攻"]
[null,null,null,null,null,null,null,null,null,null,null,null,null,null,null,null,"MD：機械設計学専攻"]
[]
["実習・設計関連科目"]
[null,null,"【実験・実習系】",null,null,null,null,null,"機械工学実験Ⅰ",null,"機械工学実験Ⅱ",null,"卒業研究（一般）",null,null,null,"(MP, MD)"]
[null,null,null,null,"機械加工法及び実習",null,"物理学実験法及び基礎実験",null,null,null,null,null,"卒業プロジェクト（地域）",null,null,null,"特別実験及び演習",null,"特別演習"]
[null,null,null,null,null,null,null,null,"機械工学実験Ⅱ",null,"機械工学実験Ⅰ",null,null,null,null,null,"特別課題実験及び演習",null,"研究指導"]
[null,null,null,null,null,null,null,null,null,null,null,null,null,null,"卒業論文",null,"特別研究"]
[null,null,null,null,null,null,null,null,null,null,null,null,null,null,null,null,"(MP)"]
[null,null,null,null,null,null,null,null,"インターンシップA，B",null,"ものづくりｲﾝﾀｰﾝｼｯﾌﾟⅠ（地域）",null,"ものづくりｲﾝﾀｰﾝｼｯﾌﾟⅡ, III （地域）",null,null,null,"プロジェクトマネジメント論"]
[]
["【専門導入科目】",null,"【設計・製図系】",null,null,null,null,null,null,null,null,null,null,null,null,null,"(MD)"]
["ｴﾝｼﾞﾆｱのためのﾘﾃﾗｼｰ",null,null,null,"機械製図法ⅠA，B",null,"機械製図法Ⅱ",null,null,null,"創造設計製図演習（一般）",null,null,null,null,null,"ストラテジックデザイン論"]
[null,null,null,null,null,null,null,null,null,null,"地域創生課題ｾﾐﾅｰⅠ（地域）",null,"地域創生課題ｾﾐﾅｰⅡ（地域）"]
[null,null,null,null,null,null,null,null,null,null,null,null,null,null,null,null,"(MD)"]
[null,null,null,null,null,null,"機械設計学",null,"応用機械設計",null,null,null,null,null,null,null,"機械システム安全設計論",null,"機素強度評価学"]
[]
["【工業力学系】"]
["工業力学Ⅰ",null,"工業力学Ⅱ"]
[null,null,null,null,null,null,"【シミュレーション系】",null,null,null,null,null,null,null,null,null,"(MP)"]
[null,null,null,null,null,null,"ｺﾝﾋﾟｭｰﾀｰｼﾐｭﾚｰｼｮﾝ基礎学",null,"データサイエンス",null,null,null,null,null,null,null,"計算流体力学"]
[null,null,null,null,null,null,null,null,null,null,null,null," ",null,null,null,"(MP)",null,"計算流体論"]
[null,null,null,null,null,null,null,null,null,null,null,null,null,null,null,null,"熱伝達論"]
[]
["流体力学関連科目"]
[null,null,null,null,null,null,"流体力学Ⅰ及び演習",null,"流体力学Ⅱ及び演習"]
[]
[null,null,null,null,null,null,null,null,null,null,null,null,null,null,null,null,"(MP)"]
["熱力学関連科目",null,null,null,null,null,null,null,null,null,null,null,null,null,null,null,"熱ｴﾈﾙｷﾞｰ変換工学"]
[null,null,null,null,null,null,null,null,null,null,null,null,null,null,null,null,"(MP)"]
[null,null,null,null,"熱力学Ⅰ及び演習",null,"熱力学Ⅱ及び演習",null,null,null,null,null,null,null,null,null,"反応性熱流体力学"]
[null,null,null,null,null,null,null,null,null,null,null,null,null,null,null,null,null,null,"エネルギシステム論"]
[null,null,null,null,null,null,null,null,null,null,"熱ｴﾈﾙｷﾞｰ輸送現象"]
[null,null,null,null,null,null,null,null,null,null,null,null,null,null,null,null,"(MP)"]
[null,null,null,null,null,null,null,null,null,null,null,null,null,null,null,null,"分子ロボティクス"]
[]
[null,null,null,null,null,null,null,null,null,null,null,null,null,null,null,null,"(MD)"]
["材料力学関連科目",null,null,null,"工業材料学",null,null,null,"材料強度学",null,null,null,null,null,null,null,"先端工業材料学"]
[null,null,null,null,null,null,null,null,null,null,null,null,null,null,null,null,"(MP)",null,"機械材料強度論"]
[null,null,null,null,null,null,null,null,null,null,null,null,null,null,null,null,"数値固体力学"]
[null,null,"材料力学Ⅰ及び演習",null,"材料力学Ⅱ及び演習",null,"有限要素法",null,null,null,null,null,null,null,null,null,"(MP)"]
[null,null,null,null,null,null,null,null,null,null,null,null,null,null,null,null,"理論応力解析学",null,"機素強度評価学"]
[null,null,null,null,null,null,null,null,"塑性力学"]
[null,null,null,null,null,null,null,null,null,null,null,null,null,null,null,null,"(MD)"]
["材料加工関連科目",null,null,null,null,null,null,null,null,null,"塑性加工学",null,null,null,null,null,"成形限界設計論"]
[null,null,null,null,null,null,null,null,null,null,null,null,null,null,null,null,"(MD)"]
[null,null,null,null,"切削・研削加工学",null,null,null,"特殊加工学",null,null,null,null,null,null,null,"先端材料加工学",null,"機械材料加工論"]
[null,null,null,null,null,null,null,null,null,null,null,null,null,null,null,null,"(MD)"]
[null,null,null,null,null,null,null,null,null,null,null,null,null,null,null,null,"応用機械加工学"]
[null,null,null,null,null,null,null,null,null,null,null,null,null,null,null,null,"(MD)"]
[null,null,null,null,null,null,null,null,null,null,null,null,null,null,null,null,"生産システム論"]
[null,null,null,null,null,null,null,null,null,null,"計画工学",null,null,null,null,null,"(MD)"]
[null,null,null,null,null,null,null,null,null,null,null,null,null,null,null,null,"最適化理論"]
[]
[null,null,null,null,null,null,null,null,null,null,null,null,null,null,null,null,"(MD)"]
["機械力学関連科目",null,null,null,null,null,null,null,null,null,null,null,null,null,null,null,"知的構造システム学"]
[null,null,null,null,null,null,null,null,null,null,null,null,null,null,null,null,"(MP)",null,"振動力学"]
[null,null,null,null,"機械力学Ⅰ及び演習",null,"機械力学Ⅱ及び演習",null,null,null,null,null,null,null,null,null,"非線形動力学"]
[null,null,null,null,null,null,null,null,null,null,null,null,null,null,null,null,"(MP)"]
[null,null,null,null,null,null,null,null,null,null,null,null,null,null,null,null,"振動解析学"]
[null,null,null,null,null,null,null,null,null,null,null,null,null,null,null,null,"(MD)"]
[null,null,null,null,null,null,"システム制御理論",null,null,null,"最適制御システム",null,null,null,null,null,"確率応用システム論",null,"システム制御論"]
[null,null,null,null,null,null,null,null,null,null,null,null,null,null,null,null,"(MD)"]
[null,null,null,null,null,null,null,null,null,null,null,null,"ロボティクス",null,null,null,"ロボット制御論"]
[null,null,null,null,null,null,null,null,null,null,null,null,null,null,null,null,"(MD)"]
[null,null,"計測基礎学",null,null,null,null,null,"工業計測法",null,null,null,null,null,null,null,"光・画像計測論",null,"エネルギシステム論"]
[null,null,null,null,null,null,null,null,null,null,null,null,null,null,null,null,"(MD)"]
[null,null,null,null,null,null,null,null,null,null,null,null,null,null,null,null,"先端工業計測論"]
["数学・物理学科目"]
[]
["基礎解析Ⅰ",null,"基礎解析Ⅱ",null,"解析学Ⅰ",null,"解析学Ⅱ",null,"応用数理"]
[]
["数学演習Ⅰ",null,"数学演習Ⅱ",null,"応用解析",null,"数理解析",null,null,null,null,null,null,null,"数理応用解析",null,null,null,"必修科目"]
[null,null,null,null,null,null,null,null,null,null,null,null,null,null,"数理応用代数"]
["線形代数学Ⅰ",null,"線形代数学Ⅱ",null,null,null,"応用幾何",null,null,null,null,null,null,null,"数理応用幾何",null,null,null,"科目"]
[]
[null,null,null,null,"統計数理",null,null,null,null,null,null,null,null,null,"データサイエンスの数理",null,null,null,"MP：Mechanophysics"]
[null,null,null,null,null,null,null,null,null,null,null,null,null,null,null,null,null,null,"MD：Mechanodesign"]
["物理学Ⅰ",null,null,null,"量子力学",null,"統計力学"]
[]
[null,null,"物理学Ⅱ",null,null,null,"物理学実験法及び基礎実験"]

{"sheet":"語学・教養・専門科目一覧中表紙","index":11,"n_rows":4,"n_cols":1,"rows_kept":4,"cut":false,"hidden":false,"merged":[[4,0,4,14],[1,0,1,14],[0,0,0,14],[2,0,2,14],[3,0,3,14]]}
[]
["英語・教養・専門科目一覧"]
[]
["令和7年度入学生用"]

{"sheet":"英語","index":12,"n_rows":10,"n_cols":22,"rows_kept":10,"cut":false,"hidden":false,"merged":[[1,17,1,20],[2,20,3,20],[4,0,9,1],[0,0,0,21],[1,2,3,2],[1,3,3,3],[1,4,3,4],[2,21,3,21],[1,6,1,16],[2,12,2,13],[2,17,3,17],[1,5,3,5],[2,18,3,18],[1,0,3,1],[2,6,2,8],[2,14,2,16],[2,19,3,19],[2,9,2,11]]}
["　　【 英語 】"]
["区分",null,"授業科目名","単位数","必須、選択などの別","学年・学期","学習・教育到達目標に対する関与の程度",null,null,null,null,null,null,null,null,null,null,"これまでの取得単位",null,null,null,"今期の目標単位"]
[null,null,null,null,null,null,"A",null,null,"B",null,null,"C",null,"D",null,null,"取得科目の単位数を入力","取得年次","成績点\nS=30点\nA+=25点, A=20点\nB+=15点, B=10点\nC+=5点, C= 0点","単位加重成績点","取得目標科目の単位数を入力"]
[null,null,null,null,null,null,"(1)","(2)","(3)","(1)","(2)","(3)","(1)","(2)","(1)","(2)","(3)"]
["英語教育科目",null,"Interactive English A",1,"必修","１・前",null,null,null,null,null,null,"◎",null,"○",null,null,1,1,15,{"$f":"R5*T5","v":15}]
[null,null,"Interactive English B",1,"必修","１・後",null,null,null,null,null,null,"◎",null,"○",null,null,1,1,20,{"$f":"R6*T6","v":20}]
[null,null,"Career English Basic",1,"必修","1・前",null,null,null,null,null,null,"◎",null,"○",null,null,1,1,30,30]
[null,null,"Academic English",1,"必修","1・後",null,null,null,null,null,null,"◎",null,"○",null,null,1,1,20,20]
[null,null,"English for Sciences and Humanities A",2,"必修","２・前",null,null,null,null,null,null,"◎",null,"○",null,null,2,2,25,50]
[null,null,"English for Sciences and Humanities B",2,"必修","２・後",null,null,null,null,null,null,"◎",null,"○",null,null,null,null,null,0,2]

{"sheet":"教養","index":13,"n_rows":196,"n_cols":22,"rows_kept":196,"cut":false,"hidden":false,"merged":[[2,21,3,21],[2,9,2,11],[2,17,3,17],[2,19,3,19],[1,6,1,16],[2,14,2,16],[2,18,3,18],[2,12,2,13],[1,17,1,20],[2,20,3,20],[71,0,160,0],[2,6,2,8],[71,1,103,1],[4,0,70,0],[104,1,131,1],[1,2,3,2],[1,3,3,3],[1,4,3,4],[1,5,3,5],[45,1,70,1],[195,2,195,21],[14,1,24,1],[25,1,33,1],[4,1,13,1],[34,1,44,1],[132,1,160,1]]}
["　　【 教養 】"]
["区分",null,"授業科目名","単位数","必須、選択などの別","学年・学期","学習・教育到達目標に対する関与の程度",null,null,null,null,null,null,null,null,null,null,"これまでの取得単位",null,null,null,"今期の目標単位"]
[null,null,null,null,null,null,"A",null,null,"B",null,null,"C",null,"D",null,null,"取得科目の単位数を入力","取得年次","成績点\nS=30点\nA+=25点, A=20点\nB+=15点, B=10点\nC+=5点, C= 0点","単位加重成績点","取得目標科目の単位数を入力"]
[null,null,null,null,null,null,"(1)","(2)","(3)","(1)","(2)","(3)","(1)","(2)","(1)","(2)","(3)"]
["実践教養科目","キャリア・技術者基盤","工芸科学基礎",1,"選択","１・前",null,"○","○",null,null,null,null,null,"○",null,null,1,1,20,{"$f":"R5*T5","v":20}]
[null,null,"キャリア教育基礎",1,"選択","１・前",null,"○","○",null,null,null,null,null,"○",null,null,1,1,20,{"$f":"R6*T6","v":20}]
[null,null,"学習・キャリア戦略論",2,"選択","１・後",null,"○","○",null,null,null,null,null,"○",null,null,null,null,null,0]
[null,null,"情報セキュリティと情報倫理",2,"選択","１・後",null,"○","○",null,null,null,null,null,"○",null,null,2,1,20,{"$f":"R8*T8","v":40}]
[null,null,"生命倫理と環境倫理",2,"選択","１・前",null,"○","○",null,null,null,null,null,"○",null,null,null,null,null,0]
[null,null,"地球環境論",2,"選択","１・前",null,"○","○",null,null,null,null,null,"○",null,null,2,1,30,60]
[null,null,"人権教育",2,"選択","1・後",null,"○","○",null,null,null,null,null,"○",null,null,null,null,null,0]
[null,null,"京の知恵　伝統産業の先進的ものづくり",2,"選択","２・後",null,"○","○",null,null,null,null,null,"○",null,null,null,null,null,0,2]
[null,null,null,null,null,null,null,null,null,null,null,null,null,null,null,null,null,null,null,null,0]
[null,null,null,null,null,null,null,null,null,null,null,null,null,null,null,null,null,null,null,null,0]
[null,"リーダーシップと経営戦略","リーダーシップ基礎Ⅰ\n〜関係性を築く対話の技術",2,"選択","１・前",null,"○",null,null,null,null,null,null,"○",null,"○",2,1,30,{"$f":"R15*T15","v":60}]
[null,null,"リーダーシップ基礎Ⅱ\n〜未来をつくる共創の技術",2,"選択","２・前",null,"○",null,null,null,null,null,null,"○",null,"○",null,null,null,0]
[null,null,"リーダーシップ実践Ⅰ\n〜半径50mのSDGs実践",2,"選択","１・後",null,"○",null,null,null,null,null,null,"○",null,"○",null,null,null,0]
[null,null,"リーダーシップ実践Ⅱ\n〜京都市のSDGs実践",2,"選択","２・後",null,"○",null,null,null,null,null,null,"○",null,"○",null,null,null,0]
[null,null,"知的財産経営論",2,"選択","１・前",null,"○",null,null,null,null,null,null,"○",null,"○",null,null,null,0]
[null,null,"デザインとブランド",2,"選択","２・後",null,"○",null,null,null,null,null,null,"○",null,"○",null,null,null,0]
[null,null,"プロジェクトマネジメント入門",2,"選択","１・後",null,"○",null,null,null,null,null,null,"○",null,"○",null,null,null,0]
[null,null,"企業金融入門",2,"選択","１・前",null,"○",null,null,null,null,null,null,"○",null,"○",null,null,null,0]
[null,null,"アントレプレナーシップ概論",2,"選択","２・前",null,"○",null,null,null,null,null,null,"○",null,"○",null,null,null,0]
[null,null,null,null,null,null,null,null,null,null,null,null,null,null,null,null,null,null,null,null,0]
[null,null,null,null,null,null,null,null,null,null,null,null,null,null,null,null,null,null,null,null,0]
[null,"心身の健康","大学生活とメンタルヘルス",1,"選択","1・前","○","○",null,null,null,null,null,null,"○",null,null,1,1,30,30]
[null,null,"コミュニケーションの心理学",1,"選択","1・前","○","○",null,null,null,null,null,null,"○",null,null,null,null,null,0]
[null,null,"健康体力科学",2,"選択","1・前","○","○",null,null,null,null,null,null,"○",null,null,null,null,null,0]
[null,null,"生体行動科学",2,"選択","１・後","○","○",null,null,null,null,null,null,"○",null,null,null,null,null,0]
[null,null,"スポーツ科学Ⅰ",2,"選択","１・前","○","○",null,null,null,null,null,null,"○",null,null,2,1,30,60]
[null,null,"スポーツ科学Ⅱ",2,"選択","１・後","○","○",null,null,null,null,null,null,"○",null,null,2,1,30,60]
[null,null,"生涯スポーツ",2,"選択","２・前\n２・後","○","○",null,null,null,null,null,null,"○",null,null,null,null,null,0]
[null,null,null,null,null,null,null,null,null,null,null,null,null,null,null,null,null,null,null,null,0]
[null,null,null,null,null,null,null,null,null,null,null,null,null,null,null,null,null,null,null,null,0]
[null,"セミナー・プロジェクト科目","大学導入セミナー",1,"選択","１・前",null,"○",null,null,null,null,null,null,"○",null,null,1,1,20,20]
[null,null,"実践問題解決セミナー",1,"選択","１・前",null,"○",null,null,null,null,null,null,"○",null,null,1,1,20,20]
[null,null,"健康と地域探訪セミナー",1,"選択","１・後",null,"○",null,null,null,null,null,null,"○",null,null,null,null,null,0]
[null,null,"パフォーマンス分析セミナー",1,"選択","１・後",null,"○",null,null,null,null,null,null,"○",null,null,null,null,null,0]
[null,null,"質問調査法セミナー",1,"選択","１・後",null,"○",null,null,null,null,null,null,"○",null,null,null,null,null,0]
[null,null,"実験心理学セミナー",1,"選択","１・後",null,"○",null,null,null,null,null,null,"○",null,null,null,null,null,0]
[null,null,"国際理解",1,"選択","１・前",null,"○",null,null,null,null,null,null,"○",null,null,null,null,null,{"$f":"R41*T41","v":0}]
[null,null,"地域連携プロジェクトⅠ",1,"選択","１・前",null,"○",null,null,null,null,null,null,"○",null,null,1,1,25,25]
[null,null,"地域連携プロジェクトⅡ",2,"選択","２・前",null,"○",null,null,null,null,null,null,"○",null,null,null,null,null,0]
[null,null,null,null,null,null,null,null,null,null,null,null,null,null,null,null,null,null,null,null,0]
[null,null,null,null,null,null,null,null,null,null,null,null,null,null,null,null,null,null,null,null,0]
[null,"言語・コミュニケーション","異文化コミュニケーション",2,"選択","１・前",null,"○",null,null,null,null,"○",null,"○",null,null,null,null,null,0]
[null,null,"ビジネス英語",2,"選択","１・前",null,"○",null,null,null,null,"○",null,"○",null,null,null,null,null,0]
[null,null,"TOEIC対策講座Ⅰ",2,"選択","１・後",null,"○",null,null,null,null,"○",null,"○",null,null,null,null,null,0,2]
[null,null,"社会文化概説（アメリカ）Ⅰ",2,"選択","１・前",null,"○",null,null,null,null,"○",null,"○",null,null,null,null,null,0]
[null,null,"社会文化概説（アメリカ）Ⅱ",2,"選択","１・後",null,"○",null,null,null,null,"○",null,"○",null,null,null,null,null,0]
[null,null,"KIT短期海外英語研修",2,"選択","１・前\n１・後",null,"○",null,null,null,null,"○",null,"○",null,null,null,null,null,0]
[null,null,"ドイツ語ⅠA（初級）",2,"選択","１・前",null,"○",null,null,null,null,"○",null,"○",null,null,null,null,null,0]
[null,null,"ドイツ語ⅠB（初級）",2,"選択","1・後",null,"○",null,null,null,null,"○",null,"○",null,null,null,null,null,0]
[null,null,"ドイツ語ⅡA（中級）",2,"選択","２・前",null,"○",null,null,null,null,"○",null,"○",null,null,null,null,null,0]
[null,null,"ドイツ語ⅡB（中級）",2,"選択","２・後",null,"○",null,null,null,null,"○",null,"○",null,null,null,null,null,0]
[null,null,"フランス語ⅠA（初級）",2,"選択","１・前",null,"○",null,null,null,null,"○",null,"○",null,null,null,null,null,0]
[null,null,"フランス語ⅠB（初級）",2,"選択","1・後",null,"○",null,null,null,null,"○",null,"○",null,null,null,null,null,0]
[null,null,"フランス語ⅡA（中級）",2,"選択","２・前",null,"○",null,null,null,null,"○",null,"○",null,null,null,null,null,0]
[null,null,"フランス語ⅡB（中級）",2,"選択","２・後",null,"○",null,null,null,null,"○",null,"○",null,null,null,null,null,0]
[null,null,"中国語ⅠA（初級）",2,"選択","１・前",null,"○",null,null,null,null,"○",null,"○",null,null,null,null,null,0]
[null,null,"中国語ⅠB（初級）",2,"選択","1・後",null,"○",null,null,null,null,"○",null,"○",null,null,null,null,null,0]
[null,null,"中国語ⅡA（中級）",2,"選択","２・前",null,"○",null,null,null,null,"○",null,"○",null,null,null,null,null,0]
[null,null,"中国語ⅡB（中級）",2,"選択","２・後",null,"○",null,null,null,null,"○",null,"○",null,null,null,null,null,{"$f":"R63*T63","v":0}]
[null,null,"日本語Ⅰ",1,"選択","１・前",null,"○",null,null,null,null,"○",null,"○",null,null,null,null,null,0]
[null,null,"日本語Ⅱ",1,"選択","1・後",null,"○",null,null,null,null,"○",null,"○",null,null,null,null,null,0]
[null,null,"日本語Ⅲ",1,"選択","１・前",null,"○",null,null,null,null,"○",null,"○",null,null,null,null,null,0]
[null,null,"日本語Ⅳ",1,"選択","1・後",null,"○",null,null,null,null,"○",null,"○",null,null,null,null,null,0]
[null,null,"日本語Ⅴ",1,"選択","２・前",null,"○",null,null,null,null,"○",null,"○",null,null,null,null,null,0]
[null,null,"日本語Ⅵ",1,"選択","２・後",null,"○",null,null,null,null,"○",null,"○",null,null,null,null,null,0]
[null,null,null,null,null,null,null,null,null,null,null,null,null,null,null,null,null,null,null,null,0]
[null,null,null,null,null,null,null,null,null,null,null,null,null,null,null,null,null,null,null,null,0]
["基盤教養科目","人と文化","哲学",2,"選択","１・後","○","○",null,null,null,null,null,null,"○",null,null,2,1,20,40]
[null,null,"比較宗教学",2,"選択","１・前","○","○",null,null,null,null,null,null,"○",null,null,2,1,30,60]
[null,null,"宗教と文化",2,"選択","１・後","○","○",null,null,null,null,null,null,"○",null,null,2,1,15,30]
[null,null,"日本史",2,"選択","１・後","○","○",null,null,null,null,null,null,"○",null,null,null,null,null,0]
[null,null,"東西文化交流史",2,"選択","１・後","○","○",null,null,null,null,null,null,"○",null,null,null,null,null,0]
[null,null,"アジアの歴史と文化",2,"選択","１・前","○","○",null,null,null,null,null,null,"○",null,null,null,null,null,0]
[null,null,"ヨーロッパの歴史と文化",2,"選択","１・後","○","○",null,null,null,null,null,null,"○",null,null,null,null,null,0]
[null,null,"科学技術の人間学",2,"選択","１・後","○","○",null,null,null,null,null,null,"○",null,null,null,null,null,0]
[null,null,"ラテン語",2,"選択","１・後","○","○",null,null,null,null,null,null,"○",null,null,null,null,null,0]
[null,null,"西洋文化論",2,"選択","１・後","○","○",null,null,null,null,null,null,"○",null,null,null,null,null,0]
[null,null,"日本近現代文学",2,"選択","１・後","○","○",null,null,null,null,null,null,"○",null,null,null,null,null,0]
[null,null,"西洋文学論",2,"選択","１・前","○","○",null,null,null,null,null,null,"○",null,null,null,null,null,0]
[null,null,"美と芸術",2,"選択","１・前","○","○",null,null,null,null,null,null,"○",null,null,null,null,null,0]
[null,null,"日本近代精神史",2,"選択","１・前","○","○",null,null,null,null,null,null,"○",null,null,null,null,null,0]
[null,null,"フランス語圏の文化とジャポニスム",2,"選択","２・前","○","○",null,null,null,null,null,null,"○",null,null,null,null,null,0]
[null,null,"医療人類学",2,"選択","１・前","○","○",null,null,null,null,null,null,"○",null,null,null,null,null,0]
[null,null,"認知心理学",2,"選択","１・前","○","○",null,null,null,null,null,null,"○",null,null,null,null,null,0]
[null,null,"京都の歴史Ⅰ",2,"選択","１・前","○","○",null,null,null,null,null,null,"○",null,null,null,null,null,0]
[null,null,"京都の歴史Ⅱ",2,"選択","１・後","○","○",null,null,null,null,null,null,"○",null,null,null,null,null,0]
[null,null,"京都の文学Ⅰ",2,"選択","１・前","○","○",null,null,null,null,null,null,"○",null,null,null,null,null,0]
[null,null,"京都の文学Ⅱ",2,"選択","１・後","○","○",null,null,null,null,null,null,"○",null,null,null,null,null,0]
[null,null,"京の意匠",2,"選択","１・後","○","○",null,null,null,null,null,null,"○",null,null,null,null,null,0]
[null,null,"京都の文化と文化財",2,"選択","１・後","○","○",null,null,null,null,null,null,"○",null,null,null,null,null,{"$f":"R94*T94","v":0}]
[null,null,"現代イスラーム世界の文化と社会（リベラルアーツ・ゼミナール）",1,"選択","１・前","○","○",null,null,null,null,null,null,"○",null,null,null,null,null,0]
[null,null,"感性の実践哲学（リベラルアーツ・ゼミナール）",1,"選択","１・前","○","○",null,null,null,null,null,null,"○",null,null,null,null,null,0]
[null,null,"資料で京都（リベラルアーツ・ゼミナール）",2,"選択","２・後","○","○",null,null,null,null,null,null,"○",null,null,null,null,null,0]
[null,null,"現代正義論（リベラルアーツ・ゼミナール）",2,"選択","１・後","○","○",null,null,null,null,null,null,"○",null,null,null,null,null,0]
[null,null,"禅と世界文化",2,"選択","１・前\n１・後","○","○",null,null,null,null,null,null,"○",null,null,null,null,null,0]
[null,null,"文化財学",2,"選択","２・前","○","○",null,null,null,null,null,null,"○",null,null,null,null,null,0]
[null,null,"日本語と日本文化Ⅰ",2,"選択","２・前","○","○",null,null,null,null,null,null,"○",null,null,null,null,null,0]
[null,null,"日本語と日本文化Ⅱ",2,"選択","２・後","○","○",null,null,null,null,null,null,"○",null,null,null,null,null,0]
[null,null,null,null,null,null,null,null,null,null,null,null,null,null,null,null,null,null,null,null,0]
[null,null,null,null,null,null,null,null,null,null,null,null,null,null,null,null,null,null,null,null,0]
[null,"人と社会","社会学Ⅰ",2,"選択","１・前","○","○",null,null,null,null,null,null,"○",null,null,2,1,30,60]
[null,null,"社会学Ⅱ",2,"選択","１・後","○","○",null,null,null,null,null,null,"○",null,null,null,null,null,0]
[null,null,"政治学",2,"選択","１・後","○","○",null,null,null,null,null,null,"○",null,null,null,null,null,0]
[null,null,"国際政治",2,"選択","1・前","○","○",null,null,null,null,null,null,"○",null,null,null,null,null,0]
[null,null,"経済学入門",2,"選択","１・後","○","○",null,null,null,null,null,null,"○",null,null,null,null,null,0]
[null,null,"医療と社会",2,"選択","１・前","○","○",null,null,null,null,null,null,"○",null,null,null,null,null,0]
[null,null,"生活と経済",2,"選択","１・後","○","○",null,null,null,null,null,null,"○",null,null,null,null,null,0]
[null,null,"こころの科学",2,"選択","１・前","○","○",null,null,null,null,null,null,"○",null,null,null,null,null,0]
[null,null,"発達心理学",2,"選択","１・前","○","○",null,null,null,null,null,null,"○",null,null,null,null,null,0]
[null,null,"現代社会と心",2,"選択","１・後","○","○",null,null,null,null,null,null,"○",null,null,null,null,null,0]
[null,null,"現代社会とジェンダー",2,"選択","１・前","○","○",null,null,null,null,null,null,"○",null,null,null,null,null,0]
[null,null,"現代教育論",2,"選択","１・前","○","○",null,null,null,null,null,null,"○",null,null,null,null,null,0]
[null,null,"環境と法",2,"選択","１・後","○","○",null,null,null,null,null,null,"○",null,null,null,null,null,0]
[null,null,"現代医療の人間観",2,"選択","１・後","○","○",null,null,null,null,null,null,"○",null,null,null,null,null,0]
[null,null,"食ブランディング論",2,"選択","１・前","○","○",null,null,null,null,null,null,"○",null,null,null,null,null,0]
[null,null,"京都学講座（人間と社会）",2,"選択","１・前","○","○",null,null,null,null,null,null,"○",null,null,null,null,null,0]
[null,null,"京の産業技術史",2,"選択","１・前","○","○",null,null,null,null,null,null,"○",null,null,null,null,null,0]
[null,null,"現代京都論",2,"選択","１・前","○","○",null,null,null,null,null,null,"○",null,null,null,null,null,0]
[null,null,"現代社会に学ぶ問う力・書く力（リベラルアーツ・ゼミナール）",2,"選択","１・前","○","○",null,null,null,null,null,null,"○",null,null,null,null,null,0]
[null,null,"社会科学の学び方（リベラルアーツ・ゼミナール）",2,"選択","１・後","○","○",null,null,null,null,null,null,"○",null,null,null,null,null,0]
[null,null,"世界はいま（リベラルアーツ・ゼミナール）",1,"選択","１・前","○","○",null,null,null,null,null,null,"○",null,null,null,null,null,0]
[null,null,"時事問題で学ぶファシリテーション（リベラルアーツ・ゼミナール）",2,"選択","１・後","○","○",null,null,null,null,null,null,"○",null,null,null,null,null,0]
[null,null,"マーケティング入門（リベラルアーツ・ゼミナール）",2,"選択","２・前","○","○",null,null,null,null,null,null,"○",null,null,null,null,null,0]
[null,null,"プレゼンテーション力とは（リベラルアーツ・ゼミナール）",2,"選択","１・前","○","○",null,null,null,null,null,null,"○",null,null,null,null,null,0]
[null,null,"憲法",2,"選択","１・後","○","○",null,null,null,null,null,null,"○",null,null,null,null,null,0]
[null,null,"経済学",2,"選択","２・前","○","○",null,null,null,null,null,null,"○",null,null,null,null,null,0]
[null,null,null,null,null,null,null,null,null,null,null,null,null,null,null,null,null,null,null,null,0]
[null,null,null,null,null,null,null,null,null,null,null,null,null,null,null,null,null,null,null,null,0]
[null,"人と自然","物理学Ⅰ",2,"選択","１・前","○","○",null,null,null,null,null,null,"○",null,null,2,1,20,40]
[null,null,"化学概論Ⅰ",2,"選択","１・前","○","○",null,null,null,null,null,null,"○",null,null,null,null,null,0]
[null,null,"化学概論Ⅱ",2,"選択","１・後","○","○",null,null,null,null,null,null,"○",null,null,null,null,null,{"$f":"R135*T135","v":0}]
[null,null,"生物学概論Ⅰ",2,"選択","１・前","○","○",null,null,null,null,null,null,"○",null,null,null,null,null,0]
[null,null,"生物学概論Ⅱ",2,"選択","１・後","○","○",null,null,null,null,null,null,"○",null,null,null,null,null,0]
[null,null,"生命科学講話",2,"選択","１・前","○","○",null,null,null,null,null,null,"○",null,null,null,null,null,0]
[null,null,"人と自然と数学αⅠ",1,"選択","１・前","○","○",null,null,null,null,null,null,"○",null,null,null,null,null,0]
[null,null,"人と自然と数学αⅡ",1,"選択","１・前","○","○",null,null,null,null,null,null,"○",null,null,null,null,null,0]
[null,null,"人と自然と数学β（リベラルアーツ・ゼミナール）",2,"選択","１・後","○","○",null,null,null,null,null,null,"○",null,null,null,null,null,0]
[null,null,"生物学的人間学",2,"選択","１・前","○","○",null,null,null,null,null,null,"○",null,null,null,null,null,0]
[null,null,"科学史Ⅰ",1,"選択","１・前","○","○",null,null,null,null,null,null,"○",null,null,null,null,null,0]
[null,null,"科学史Ⅱ",1,"選択","１・前","○","○",null,null,null,null,null,null,"○",null,null,null,null,null,0]
[null,null,"環境問題と持続可能な社会",2,"選択","１・前","○","○",null,null,null,null,null,null,"○",null,null,2,1,20,40]
[null,null,"食と健康の科学",2,"選択","１・前","○","○",null,null,null,null,null,null,"○",null,null,null,null,null,0]
[null,null,"キャンパスヘルス概論",2,"選択","１・前","○","○",null,null,null,null,null,null,"○",null,null,null,null,null,0]
[null,null,"エネルギー科学",2,"選択","１・前","○","○",null,null,null,null,null,null,"○",null,null,null,null,null,0]
[null,null,"現代科学と倫理",2,"選択","１・前","○","○",null,null,null,null,null,null,"○",null,null,null,null,null,0]
[null,null,"医学概論Ⅰ",1,"選択","１・後","○","○",null,null,null,null,null,null,"○",null,null,null,null,null,0]
[null,null,"医学概論Ⅱ",1,"選択","１・後","○","○",null,null,null,null,null,null,"○",null,null,null,null,null,0]
[null,null,"やさしい看護学",1,"選択","１・前","○","○",null,null,null,null,null,null,"○",null,null,null,null,null,0]
[null,null,"京都の農林業",2,"選択","１・後","○","○",null,null,null,null,null,null,"○",null,null,null,null,null,0]
[null,null,"京都の防災と府民",2,"選択","１・後","○","○",null,null,null,null,null,null,"○",null,null,null,null,null,0]
[null,null,"京都の自然",2,"選択","１・前","○","○",null,null,null,null,null,null,"○",null,null,null,null,null,0]
[null,null,"光と色彩のサイエンス",2,"選択","１・前","○","○",null,null,null,null,null,null,"○",null,null,null,null,null,0]
[null,null,"製品の機能から科学を学ぶ（リベラルアーツ・ゼミナール）",2,"選択","１・前","○","○",null,null,null,null,null,null,"○",null,null,null,null,null,0]
[null,null,"意外と知らない植物の世界（リベラルアーツ・ゼミナール）",2,"選択","１・後","○","○",null,null,null,null,null,null,"○",null,null,null,null,null,0]
[null,null,"レーザで測る、創る、楽しむ（リベラルアーツ・ゼミナール）",2,"選択","１・前","○","○",null,null,null,null,null,null,"○",null,null,null,null,null,0]
[null,null,null,null,null,null,null,null,null,null,null,null,null,null,null,null,null,null,null,null,0]
[null,null,null,null,null,null,null,null,null,null,null,null,null,null,null,null,null,null,null,null,0]
["高年次配当科目",null,"ものづくりと生命物質科学",2,"選択","３・前",null,"○","○",null,null,null,null,null,"○",null,null,null,null,null,0]
[null,null,"ものづくりとデザイン科学",2,"選択","３・後",null,"○","○",null,null,null,null,null,"○",null,null,null,null,null,0]
[null,null,"環境マネジメント",1,"選択","３・前",null,"○","○",null,null,null,null,null,"○",null,null,null,null,null,0]
[null,null,"ビジネスと知的財産活用",2,"選択","３・後",null,"○","○",null,null,null,null,null,"○",null,null,null,null,null,0]
[null,null,"ベンチャー企業経営学",2,"選択","３・後",null,"○","○",null,null,null,null,null,"○",null,null,null,null,null,0]
[null,null,"人と運動（教養セミナー）",1,"選択","３・後",null,"○",null,null,null,null,null,null,"○",null,null,null,null,null,0]
[null,null,"科学と宗教（教養セミナー）",1,"選択","３・前",null,"○",null,null,null,null,null,null,"○",null,null,null,null,null,0]
[null,null,"人と環境（教養セミナー）",1,"選択","３・後",null,"○",null,null,null,null,null,null,"○",null,null,null,null,null,0]
[null,null,"ポスト・グローバル化社会を生きる（教養セミナー）",1,"選択","３・前",null,"○",null,null,null,null,null,null,"○",null,null,null,null,null,0]
[null,null,"科学技術と社会（教養セミナー）",1,"選択","３・後",null,"○",null,null,null,null,null,null,"○",null,null,null,null,null,0]
[null,null,"社会と経済（教養セミナー）",1,"選択","３・後",null,"○",null,null,null,null,null,null,"○",null,null,null,null,null,0]
[null,null,"教育と社会（教養セミナー）",1,"選択","３・後",null,"○",null,null,null,null,null,null,"○",null,null,null,null,null,0]
[null,null,"テクストと社会（教養セミナー）",1,"選択","３・後",null,"○",null,null,null,null,null,null,"○",null,null,null,null,null,0]
[null,null,"ジェンダーと文化（教養セミナー）",1,"選択","３・前",null,"○",null,null,null,null,null,null,"○",null,null,null,null,null,0]
[null,null,"科学と哲学（教養セミナー）",1,"選択","３・後",null,"○",null,null,null,null,null,null,"○",null,null,null,null,null,0]
[null,null,"京のまち",2,"選択","３・後",null,"○",null,null,null,null,null,null,"○",null,null,null,null,null,0]
[null,null,"科学技術と地域社会",2,"選択","３・後",null,"○",null,null,null,null,null,null,"○",null,null,null,null,null,0]
[null,null,"身体運動のバイオメカニクス",2,"選択","３・前","○","○",null,null,null,null,null,null,"○",null,null,null,null,null,0]
[null,null,"生体行動科学特論",2,"選択","３・後","○","○",null,null,null,null,null,null,"○",null,null,null,null,null,0]
[null,null,"映画で学ぶ英語と文化",2,"選択","３・後","○","○",null,null,null,null,null,null,"○",null,null,null,null,null,0]
[null,null,"映画で学ぶドイツ語と文化",2,"選択","３・前","○","○",null,null,null,null,null,null,"○",null,null,null,null,null,0]
[null,null,"英語で京都",2,"選択","３・後","○","○",null,null,null,null,null,null,"○",null,null,null,null,null,0]
[null,null,"TOEIC 対策講座Ⅱ",2,"選択","３・後","○","○",null,null,null,null,null,null,"○",null,null,null,null,null,0]
[null,null,"セミナー・プロジェクト（PBL/CLIL）",2,"選択","３・前","○","○",null,null,null,null,null,null,"○",null,null,null,null,null,0]
[null,null,"ドイツ語（文化・文学・思想）A",2,"選択","３・前","○","○",null,null,null,null,null,null,"○",null,null,null,null,null,0]
[null,null,"ドイツ語（文化・文学・思想）B",2,"選択","３・後","○","○",null,null,null,null,null,null,"○",null,null,null,null,null,0]
[null,null,"フランス語（文化・文学・思想）A",2,"選択","３・前","○","○",null,null,null,null,null,null,"○",null,null,null,null,null,0]
[null,null,"フランス語（文化・文学・思想）B",2,"選択","３・後","○","○",null,null,null,null,null,null,"○",null,null,null,null,null,0]
[null,null,"国際連携プロジェクトⅠ",1,"選択","４・前",null,"○",null,null,null,null,null,null,"○",null,"○",null,null,null,0]
[null,null,"国際連携プロジェクトⅡ",2,"選択","４・前",null,"○",null,null,null,null,null,null,"○",null,"○",null,null,null,0]
[null,null,null,null,null,null,null,null,null,null,null,null,null,null,null,null,null,null,null,null,0]
[null,null,null,null,null,null,null,null,null,null,null,null,null,null,null,null,null,null,null,null,0]
[null,null,null,null,null,null,null,null,null,null,null,null,null,null,null,null,null,null,null,null,0]
[]
[null,null,"上記の背景色が黄色の部分は科目の追加等に使用して下さい．"]

{"sheet":"専門","index":14,"n_rows":104,"n_cols":22,"rows_kept":104,"cut":false,"hidden":false,"merged":[[102,0,102,21],[103,0,103,1],[103,2,103,7],[103,8,103,21],[1,0,3,1],[1,5,3,5],[2,18,3,18],[2,19,3,19],[4,0,6,1],[2,14,2,16],[2,17,3,17],[47,0,101,1],[40,1,46,1],[35,1,39,1],[7,0,46,0],[33,1,34,1],[26,1,32,1],[7,1,25,1],[1,17,1,20],[2,20,3,20],[0,0,0,21],[1,2,3,2],[1,3,3,3],[1,4,3,4],[2,21,3,21],[1,6,1,16],[2,6,2,8],[2,9,2,11],[2,12,2,13]]}
["　　【 専門 】"]
["区分",null,"授業科目名","単位数","必須、選択などの別","学年・学期","学習・教育到達目標に対する関与の程度",null,null,null,null,null,null,null,null,null,null,"これまでの取得単位",null,null,null,"今期の目標単位"]
[null,null,null,null,null,null,"A",null,null,"B",null,null,"C",null,"D",null,null,"取得科目の単位数を入力","取得年次","成績点\nS=30点\nA+=25点, A=20点\nB+=15点, B=10点\nC+=5点, C= 0点","単位加重成績点","取得目標科目の単位数を入力"]
[null,null,null,null,null,null,"(1)","(2)","(3)","(1)","(2)","(3)","(1)","(2)","(1)","(2)","(3)"]
["専門導入科目",null,"エンジニアのためのリテラシー",2,"必修","１・前",null,"◎",null,null,null,"○",null,"◎","○",null,null,2,1,30,{"$f":"R5*T5","v":60}]
[null,null,"地域課題導入ｾﾐﾅｰⅠ（地域）",1,"必修","１・前",null,null,null,null,null,"○",null,null,"○",null,null,null,null,null,{"$f":"R6*T6","v":0}]
[null,null,"地域課題導入ｾﾐﾅｰⅡ（地域）",2,"選択","2・前",null,null,null,null,null,"○",null,null,"○",null,null,null,null,null,0]
["専門基礎科目","数学","基礎解析Ⅰ",2,"必修","１・前\n１・後",null,null,null,"◎",null,"○",null,null,"○",null,null,2,1,20,40]
[null,null,"基礎解析Ⅱ",2,"選択必修","１・後",null,null,null,"○",null,"○",null,null,"○",null,null,2,1,15,30,1]
[null,null,"線形代数学Ⅰ",2,"必修","１・前\n１・後",null,null,null,"◎",null,"○",null,null,"○",null,null,2,1,20,40]
[null,null,"線形代数学Ⅱ",2,"選択必修","１・後",null,null,null,"○",null,"○",null,null,"○",null,null,null,null,null,0,2]
[null,null,"数学演習Ⅰ",2,"選択","１・前\n１・後",null,null,null,"○",null,"○",null,null,"○",null,null,null,null,null,0]
[null,null,"数学演習Ⅱ",2,"選択","１・後",null,null,null,"○",null,"○",null,null,"○",null,null,null,null,null,0]
[null,null,"解析学Ⅰ",2,"選択必修","２・前",null,null,null,"○",null,"○",null,null,"○",null,null,2,2,20,{"$f":"R14*T14","v":40}]
[null,null,"解析学Ⅱ",2,"選択","２・後",null,null,null,"○",null,"○",null,null,"○",null,null,null,null,null,0]
[null,null,"統計数理",2,"必修","２・前",null,null,null,"◎",null,"○",null,null,"○",null,null,2,2,20,40]
[null,null,"応用解析",2,"選択必修","２・前",null,null,null,"○",null,"○",null,null,"○",null,null,2,2,15,30]
[null,null,"応用幾何",2,"選択必修","２・後",null,null,null,"○",null,"○",null,null,"○",null,null,null,null,null,0,2]
[null,null,"数理解析",2,"選択必修","２・後",null,null,null,"○",null,"○",null,null,"○",null,null,null,null,null,0,2]
[null,null,"応用数理",2,"選択必修","３・前",null,null,null,"○",null,"○",null,null,"○",null,null,null,null,null,0]
[null,null,"数理応用代数",2,"選択","４・後",null,null,null,"○",null,"○",null,null,"○",null,null,null,null,null,0]
[null,null,"数理応用幾何",2,"選択","４・後",null,null,null,"○",null,"○",null,null,"○",null,null,null,null,null,0]
[null,null,"数理応用解析",2,"選択","４・後",null,null,null,"○",null,"○",null,null,"○",null,null,null,null,null,0]
[null,null,"データサイエンスの数理",2,"選択","４・後",null,null,null,"○",null,"○",null,null,"○",null,null,null,null,null,0]
[null,null,null,null,null,null,null,null,null,null,null,null,null,null,null,null,null,null,null,null,0]
[null,null,null,null,null,null,null,null,null,null,null,null,null,null,null,null,null,null,null,null,0]
[null,"物理学","物理学Ⅰ",2,"選択必修","１・前",null,null,null,"○",null,"○",null,null,"○",null,null,2,2,30,60]
[null,null,"物理学Ⅱ",2,"選択必修","１・後",null,null,null,"○",null,"○",null,null,"○",null,null,null,null,null,0,2]
[null,null,"物理学実験法及び基礎実験",1,"必修","２・後",null,null,null,"◎",null,"○",null,null,"○",null,null,null,null,null,0,1]
[null,null,"量子力学",2,"選択必修","２・前",null,null,null,"○",null,"○",null,null,"○",null,null,null,null,null,0]
[null,null,"統計力学",1,"選択必修","２・後",null,null,null,"○",null,"○",null,null,"○",null,null,null,null,null,0]
[null,null,null,null,null,null,null,null,null,null,null,null,null,null,null,null,null,null,null,null,0]
[null,null,null,null,null,null,null,null,null,null,null,null,null,null,null,null,null,null,null,null,0]
[null,"情報","AI・データサイエンスⅠ",1,"選択","１・後",null,null,null,"○",null,"○",null,null,"○",null,null,1,1,30,30]
[null,null,null,null,null,null,null,null,null,null,null,null,null,null,null,null,null,null,null,null,0]
[null,"その他","新先端ﾌｧｲﾌﾞﾛ科学",2,"選択","１・後",null,null,null,"○",null,"○",null,null,"○",null,null,null,null,null,0]
[null,null,"インターンシップA",1,"選択","３・前",null,null,null,"○",null,"◎",null,null,"○",null,null,null,null,null,0]
[null,null,"インターンシップＢ",2,"選択","３・前",null,null,null,"○",null,"◎",null,null,"○",null,null,null,null,null,0]
[null,null,null,null,null,null,null,null,null,null,null,null,null,null,null,null,null,null,null,null,0]
[null,null,null,null,null,null,null,null,null,null,null,null,null,null,null,null,null,null,null,null,0]
[null,"複合\n材料","繊維科学概論",1,"選択","３・後",null,null,null,"○",null,"○",null,null,"○",null,null,null,null,null,0]
[null,null,"複合材料科学",2,"選択","３・後",null,null,null,"○",null,"○",null,null,"○",null,null,null,null,null,0]
[null,null,"先端複合材料学",2,"選択","３・後",null,null,null,"○",null,"○",null,null,"○",null,null,null,null,null,0]
[null,null,"複合材料基礎実験",1,"選択","３・後",null,null,null,"○",null,"○",null,null,"○",null,null,null,null,null,0]
[null,null,"複合材料ものづくり実験",1,"選択","４・前",null,null,null,"○",null,"○",null,null,"○",null,null,null,null,null,0]
[null,null,null,null,null,null,null,null,null,null,null,null,null,null,null,null,null,null,null,null,0]
[null,null,null,null,null,null,null,null,null,null,null,null,null,null,null,null,null,null,null,null,0]
["課程専門\n科目",null,"工業力学Ⅰ",2,"必修","１・前",null,null,null,"◎",null,"○",null,null,"○",null,null,2,1,20,40]
[null,null,"工業力学Ⅱ",2,"必修","１・後",null,null,null,"◎",null,"○",null,null,"○",null,null,2,1,20,40]
[null,null,"材料力学Ⅰ及び演習",2,"必修","１・後",null,null,null,null,"◎","○",null,null,"○",null,null,2,1,20,40]
[null,null,"材料力学Ⅱ及び演習",2,"必修","２・前",null,null,null,null,"◎","○",null,null,"○",null,null,null,null,null,0]
[null,null,"熱力学Ⅰ及び演習A",1,"必修","２・前",null,null,null,null,"◎","○",null,null,"○",null,null,1,2,30,30,1]
[null,null,"熱力学Ⅰ及び演習B",1,"必修","２・前",null,null,null,null,"◎","○",null,null,"○",null,null,1,2,20,20,1]
[null,null,"熱力学Ⅱ及び演習A",1,"必修","２・後",null,null,null,null,"◎","○",null,null,"○",null,null,null,null,null,0,1]
[null,null,"熱力学Ⅱ及び演習B",1,"必修","２・後",null,null,null,null,"◎","○",null,null,"○",null,null,null,null,null,0,1]
[null,null,"機械力学Ⅰ及び演習",2,"必修","２・前",null,null,null,null,"◎","○",null,null,"○",null,null,2,2,20,40]
[null,null,"機械力学Ⅱ及び演習",2,"必修","２・後",null,null,null,null,"◎","○",null,null,"○",null,null,null,null,null,0,2]
[null,null,"流体力学Ⅰ及び演習A",1,"必修","２・後",null,null,null,null,"◎","○",null,null,"○",null,null,null,null,null,0,1]
[null,null,"流体力学Ⅰ及び演習B",1,"必修","２・後",null,null,null,null,"◎","○",null,null,"○",null,null,null,null,null,0,1]
[null,null,"流体力学Ⅱ及び演習",2,"必修","３・前",null,null,null,null,"◎","○",null,null,"○",null,null,null,null,null,0]
[null,null,"機械加工法及び実習A",1,"必修","２・前",null,null,null,null,"◎","○",null,null,"○",null,"◎",1,2,30,{"$f":"R61*T61","v":30}]
[null,null,"機械加工法及び実習B",1,"必修","２・前",null,null,null,null,"◎","○",null,null,"○",null,"◎",1,2,30,{"$f":"R62*T62","v":30}]
[null,null,"データサイエンス",1,"必修","３・前",null,null,null,"◎",null,"○",null,null,"○",null,null,null,null,null,0]
[null,null,"機械製図法ⅠA",1,"必修","２・前",null,null,null,null,"◎","○",null,null,"○",null,null,1,2,20,20]
[null,null,"機械製図法ⅠB",1,"必修","２・前",null,null,null,null,"◎","○",null,null,"○",null,null,1,2,20,{"$f":"R65*T65","v":20}]
[null,null,"機械製図法Ⅱ",2,"必修","２・後",null,null,null,null,"◎","○",null,null,"○",null,null,null,null,null,0,2]
[null,null,"創造設計製図演習",2,"必修","３・後",null,null,null,null,"◎","○",null,null,"○","◎","◎",null,null,null,0]
[null,null,"機械工学実験Ⅰ",1,"必修","３・前\n３・後",null,null,"◎",null,null,"◎",null,"◎","○",null,"◎",null,null,null,0]
[null,null,"機械工学実験Ⅱ",1,"必修","３・前\n３・後\n２・後",null,null,"◎",null,null,"◎",null,"◎","○",null,"◎",null,null,null,0]
[null,null,"計測基礎学A",1,"選択","１・後",null,null,null,null,null,"○",null,null,"○",null,null,1,1,25,25]
[null,null,"計測基礎学B",1,"選択","１・後",null,null,null,null,null,"○",null,null,"○",null,null,1,1,25,{"$f":"R71*T71","v":25}]
[null,null,"工業材料学",2,"選択","２・前",null,null,null,null,null,"○",null,null,"○",null,null,2,2,30,60]
[null,null,"切削・研削加工学A",1,"選択","２・前",null,null,null,null,null,"○",null,null,"○",null,null,null,null,null,0]
[null,null,"切削・研削加工学B",1,"選択","２・前",null,null,null,null,null,"○",null,null,"○",null,null,null,null,null,0]
[null,null,"ｺﾝﾋﾟｭｰﾀｼﾐｭﾚｰｼｮﾝ基礎学A",1,"選択","２・後",null,null,null,null,null,"○",null,null,"○",null,null,null,null,null,0,1]
[null,null,"ｺﾝﾋﾟｭｰﾀｼﾐｭﾚｰｼｮﾝ基礎学B",1,"選択","２・後",null,null,null,null,null,"○",null,null,"○",null,null,null,null,null,0,1]
[null,null,"材料強度学",2,"選択","３・前",null,null,null,null,null,"○",null,null,"○",null,null,null,null,null,0]
[null,null,"有限要素法",2,"選択","２・後",null,null,null,null,null,"○",null,null,"○",null,null,null,null,null,{"$f":"R78*T78","v":0},2]
[null,null,"工業計測法",2,"選択","３・前",null,null,null,null,null,"○",null,null,"○",null,null,null,null,null,0]
[null,null,"システム制御理論A",1,"選択","２・後",null,null,null,null,null,"○",null,null,"○",null,null,null,null,null,0,2]
[null,null,"システム制御理論B",1,"選択","２・後",null,null,null,null,null,"○",null,null,"○",null,null,null,null,null,0,1]
[null,null,"機械設計学",2,"選択","２・後",null,null,null,null,null,"○",null,null,"○",null,null,null,null,null,0,1]
[null,null,"熱エネルギー輸送現象",2,"選択","３・後",null,null,null,null,null,"○",null,null,"○",null,null,null,null,null,0]
[null,null,"最適制御システム",2,"選択","３・後",null,null,null,null,null,"○",null,null,"○",null,null,null,null,null,0]
[null,null,"塑性力学",2,"選択","３・前",null,null,null,null,null,"○",null,null,"○",null,null,null,null,null,0]
[null,null,"特殊加工学",2,"選択","３・前",null,null,null,null,null,"○",null,null,"○",null,null,null,null,null,0]
[null,null,"応用機械設計",2,"選択","３・前",null,null,null,null,null,"○",null,null,"○",null,null,null,null,null,0]
[null,null,"塑性加工学",2,"選択","３・後",null,null,null,null,null,"○",null,null,"○",null,null,null,null,null,0]
[null,null,"計画工学",2,"選択","３・後",null,null,null,null,null,"○",null,null,"○",null,null,null,null,null,0]
[null,null,"ロボティクス",2,"選択","４・前",null,null,null,null,null,"○",null,null,"○",null,null,null,null,null,0]
[null,null,"卒業論文",1,"選択","４・後",null,null,null,null,null,"○",null,null,"○",null,null,null,null,null,0]
[null,null,"卒業研究",8,"必修","４・通",null,null,null,null,null,"◎",null,null,"○","◎",null,null,null,null,0]
[null,null,null,null,null,null,null,null,null,null,null,null,null,null,null,null,null,null,null,null,0]
[null,null,null,null,null,null,null,null,null,null,null,null,null,null,null,null,null,null,null,null,0]
[null,null,"地域創生課題セミナーⅠ\n（創造設計製図演習に読替）",2,"必修","３・後",null,null,null,null,"◎","○",null,null,"○","◎","◎",null,null,null,0]
[null,null,"地域創生課題セミナーⅡ",2,"選択","４・前",null,null,null,null,null,"○",null,null,"○",null,null,null,null,null,0]
[null,null,"ものづくりインターンシップⅠ",4,"必修","３・後",null,null,null,null,null,"◎",null,null,"○",null,null,null,null,null,0]
[null,null,"ものづくりインターンシップⅡ",4,"選択","４・前",null,null,null,null,null,"◎",null,null,"○",null,null,null,null,null,0]
[null,null,"ものづくりインターンシップⅢ",2,"選択","４・前",null,null,null,null,null,"◎",null,null,"○",null,null,null,null,null,0]
[null,null,"卒業プロジェクト\n（卒業研究に読替）",8,"必修","４・通",null,null,null,null,null,"◎",null,null,"○","◎",null,null,null,null,0]
[null,null,null,null,null,null,null,null,null,null,null,null,null,null,null,null,null,null,null,null,0]
[null,null,null,null,null,null,null,null,null,null,null,null,null,null,null,null,null,null,null,null,{"$f":"R102*T102","v":0}]
[]
[null,null,"上記の背景色が黄色の部分は科目の追加等に使用して下さい．"]

{"sheet":"科目外","index":15,"n_rows":31,"n_cols":15,"rows_kept":31,"cut":false,"hidden":false,"merged":[[15,0,16,0],[15,3,16,3],[15,4,16,6],[15,7,16,9],[17,3,24,3],[27,4,27,6],[29,4,29,6],[27,7,27,9],[29,7,29,9],[15,2,16,2],[26,4,26,6],[27,1,28,1],[28,4,28,6],[28,7,28,9],[17,2,25,2],[25,7,26,9],[15,1,16,1],[9,7,10,9],[7,0,10,0],[11,1,12,1],[1,3,2,3],[3,3,4,3],[5,3,6,3],[7,3,8,3],[9,3,10,3],[11,3,12,3],[12,4,12,6],[12,7,12,9],[11,4,11,6],[11,7,11,9],[3,0,4,0],[3,1,4,1],[5,0,6,0],[5,1,6,1],[7,1,8,1],[7,4,8,6],[7,7,8,9],[11,0,14,0],[14,4,14,6],[14,7,14,9],[0,0,0,12],[17,7,18,7],[19,7,20,7],[1,7,2,9],[21,7,22,7],[19,4,20,4],[21,4,22,4],[17,4,18,4],[3,2,4,2],[3,4,4,6],[3,7,4,9],[5,4,6,6],[5,7,6,9],[5,2,6,2],[5,11,6,11],[1,4,2,6],[1,0,2,0],[1,1,2,1],[1,2,2,2],[7,11,8,11],[7,2,8,2],[9,1,10,1],[9,2,10,2],[9,4,10,6],[1,13,2,13],[9,11,10,11],[19,14,20,14],[9,14,10,14],[1,14,2,14],[11,14,12,14],[13,14,14,14],[1,11,2,11],[1,12,2,12],[15,12,16,12],[11,11,12,11],[3,12,4,12],[5,12,6,12],[7,12,8,12],[3,13,4,13],[5,13,6,13],[3,11,4,11],[3,14,4,14],[5,14,6,14],[7,14,8,14],[17,14,18,14],[9,12,10,12],[11,12,12,12],[15,14,16,14],[7,13,8,13],[9,13,10,13],[11,13,12,13],[23,11,24,11],[16,10,23,10],[17,11,18,11],[15,13,16,13],[13,11,14,11],[13,13,14,13],[17,12,18,12],[13,12,14,12],[15,11,16,11],[17,13,18,13],[26,14,27,14],[21,13,22,13],[23,13,24,13],[23,14,24,14],[30,0,31,0],[21,14,22,14],[19,12,20,12],[21,12,22,12],[19,11,20,11],[21,11,22,11],[19,13,20,13],[17,0,26,0],[27,0,29,0],[23,12,24,12],[30,7,31,9],[30,1,31,1],[30,2,31,2],[30,3,31,3],[30,4,31,6],[25,12,25,13],[25,4,25,6],[23,7,24,7],[23,4,24,4],[17,1,26,1]]}
["　　【 科目外 】"]
["学習・教育到達目標","達成度\n評価対象","達成要件","達成度評価基準","これまでに達成したもの(達成度評価基準欄の指示に従うこと．基本的に達成したものに１を入力，累積評価のものはこれまでの合計値）",null,null,"今期の目標",null,null,null,"学習・教育到達目標","自発的学習計画\n（技術者としての自己デザインのための自発的学習，特に，\n他分野の人とチームを構成し，協働して目的を遂行する学習)","自発的学習計画の達成状況に対する自己評価","達成状況に対する自己評価点（0点～5点)"]
[]
["A(1)\n【 教養 】","スポーツや芸術等に係る身体的もしくは創作的な活動（サークル，趣味，イベント等）","――――――","左記の創作的な活動を（継続的に）実施する．\n（累積評価：1点/半期）",2,null,null,1,null,null,null,"A(1)\n【 教養 】","A(1)の自発的学習計画を書く","A(1)の自己評価を書く",5]
[]
["A(2)\n【 視点 】","歴史，文化，価値観等に係る文化的な活動（読書，寺社仏閣・名跡探訪，旅行等）","――――――","左記の文化的な活動を（継続的に）実施する．\n（累積評価：1点/半期）",null,null,null,null,null,null,null,"A(2)\n【 視点 】","A(２)の自発的学習計画を書く","A(２)の自己評価を書く",2]
[]
["A(3)\n【 倫理 】","環境安全マネジメント活動","環境安全マネジメント講習に出席し，少なくとも１年間環境安全マネジメントプログラム実行計画書にしたがって活動する．","――――――",null,null,null,null,null,null,null,"A(3)\n【 倫理 】","A(３)の自発的学習計画を書く","A(３)の自己評価を書く",0]
[]
[null,"科学技術や自然環境，生命等に係る社会的な活動（読書，博物館，ボランティア等）","――――――","左記の社会的な活動を（継続的に）実施する．\n（累積評価：1点/半期）",1,null,null,null,null,null,null,"B(1)\n【 基礎 】","B(1)の自発的学習計画を書く","B(1)の自己評価を書く",3]
[]
["B(3)\n【 開発 】","機械工学課程対象の工場見学および学術講演会","機械工学課程対象の工場見学に参加する．","左記の工場見学もしくは学術講演会等に参加する．(累積評価：1点/回)",null,null,null,null,null,null,null,"B(2)\n【 専門 】","B(２)の自発的学習計画を書く","B(2)の自己評価を書く",5]
[null,null,"機械工学課程対象の学術講演会に参加する．"]
[null,"上記以外の工場見学，学術講演会等","――――――","左記の工場見学，学術講演会等に参加する．(累積評価：1点/1回)",null,null,null,null,null,null,null,"B(3)\n【 開発 】","B(３)の自発的学習計画を書く","B(3)の自己評価を書く",5]
[null,"論文投稿，学会発表（投稿中，発表予定を含む）を行う．","――――――","論文投稿：2点/1本\n国際学会発表：2点/1回\n国内学会発表：1点/1回"]
["C(1)\n【 国際】","英会話教室，外国語の資格試験の受験，留学等の国際コミュニケーション能力を高める活動","――――――","左記の国際コミュニケーション能力を高める活動を（継続的に）実施する．(累積評価：1点/回)",4,null,null,null,null,null,null,"C(1)\n【 国際 】","C(1)の自発的学習計画を書く","C(1)の自己評価を書く",3]
[]
["D(1)\n【 自発 】","達成度総合評価報告・学習計画書","学期ごとに達成度総合評価報告・学習計画書を提出する．","達成度総合評価報告・学習計画書を提出した学期全ておよび今期（提出予定）に１を記入する．",1,"前",1,1,"前",null,null,"C(2)\n【 論理 】","C(2）の自発的学習計画を書く","C(2)の自己評価を書く",1]
[null,null,null,null,null,"後",1,null,"後"]
[null,null,null,null,2,"前",1,2,"前",null,null,"D(1)\n【 自発 】","D(1)の自発的学習計画を書く","D(1)の自己評価を書く",2]
[null,null,null,null,null,"後",null,null,"後",1]
[null,null,null,null,3,"前",null,3,"前",null,null,"D(2)\n【 計画 】","D(２)の自発的学習計画を書く","D(２)の自己評価を書く",2]
[null,null,null,null,null,"後",null,null,"後"]
[null,null,null,null,4,"前",null,4,"前",null,null,"D(3)\n【 ﾘｰﾀﾞｰ 】","D(３)の自発的学習計画を書く","D(３)の自己評価を書く",5]
[null,null,null,null,null,"後",null,null,"後"]
[null,null,null,"現在までの提出回数（過年度生は全ての回数を入力する）を入力する．",3,null,null,null,null,null,null,null,"★ 上記の学習計画と自己評価は，できるだけこれまでのものを全て含む形で記述すること．"]
[null,null,"4年次に卒業研究に着手し，4年次終了時に卒業する.","4年次に卒業予定：1\n4年次に卒研着手：2\n4年次終了時に卒業：3",1]
["D(2)\n【 計画 】","卒業研究(一般)\n卒業プロジェクト(地域)","｢種々の条件の下で問題解決の可能性を追求し，計画的に目標を達成することができる能力｣に対する評価項目に合格して，単位を取得する．","指導教員の下で卒業研究を実施していれば（合格予定であれば）1を入力する．"]
[null,null,"教員の指導の下で年間４５０時間以上の研究を実施する．","450時間以上が必要（時間数で入力する）．"]
[null,"卒業研究記録","卒業研究に関する記録を作成し，提出する．","卒研記録を作成していれば1を入力する（提出は予定で可）．"]
["D(3)\n【 ﾘｰﾀﾞｰ 】","他分野の人と協働して目的を遂行するプロジェクト（学生プロジェクト等）","――――――","他分野の人と協働して目的を遂行するチームに参加する．",3,null,null,1]

{"sheet":"【 達成度総合評価報告・学習計画書 】","index":16,"n_rows":45,"n_cols":12,"rows_kept":45,"cut":false,"hidden":false,"merged":[[44,11,45,14],[36,0,38,0],[28,0,30,0],[31,0,33,0],[34,0,35,0],[31,2,31,8],[33,9,33,14],[34,9,34,14],[28,9,28,14],[32,2,32,8],[32,9,32,14],[29,9,29,14],[28,2,28,8],[41,3,42,7],[44,3,45,7],[25,0,25,14],[34,2,34,8],[43,0,43,14],[37,2,37,8],[37,9,37,14],[39,0,40,14],[38,2,38,8],[38,9,38,14],[41,11,42,14],[26,2,27,8],[26,9,27,14],[36,9,36,14],[36,2,36,8],[35,9,35,14],[33,2,33,8],[29,2,29,8],[5,0,5,14],[16,0,17,0],[3,3,3,4],[4,3,4,4],[7,9,7,11],[10,0,12,0],[8,7,9,7],[13,0,15,0],[13,9,15,9],[8,0,9,1],[10,9,12,9],[16,9,17,9],[6,8,20,8],[6,12,20,14],[8,3,8,6],[8,11,9,11],[0,0,0,14],[3,8,4,14],[3,0,4,0],[3,1,3,2],[4,1,4,2],[1,1,1,14],[2,0,2,14],[3,5,4,5],[18,0,20,0],[8,9,9,10],[6,9,6,11],[24,0,24,14],[6,0,6,7],[7,0,7,7],[18,9,20,9],[21,1,21,10],[22,1,22,10],[26,0,27,1],[30,9,30,14],[31,9,31,14],[35,2,35,8],[30,2,30,8]]}
[]
[null,"【 達成度総合評価報告・学習計画書 】"]
[]
[null,"学籍番号",null,{"$f":"学習・教育到達目標と基本項目!$B$34","v":23123099},null,null,"年　　次",{"$f":"学習・教育到達目標と基本項目!$B$39","v":2}]
[null,"氏　　名",null,{"$f":"学習・教育到達目標と基本項目!$B$35","v":"工繊一郎"},null,null,"学　　期",{"$f":"IF(学習・教育到達目標と基本項目!$C$40=1,\"前学期\",IF(学習・教育到達目標と基本項目!$C$41=1,\"後学期\",\"\"))","v":"後学期"}]
[]
["【 達成度総合評価表 】",null,null,null,null,null,null,null,null,"【 学習計画表 】"]
[]
["学習・教育\n到達目標",null,"達成要件","自己デザイン評価",null,null,null,"総合評価点（全項目６０点以上で合格）",null,"学習・教育\n到達目標",null,"今期の終了時における達成要件の達成率"]
[null,null,"達成率（％）","実施率（％）","評価点","自己評価点","実現度"]
["Ａ","（１）\n【 教養 】",{"$f":"'【 教養 】'!C18","v":100},{"$f":"'【 教養 】'!C19","v":71},{"$f":"'【 教養 】'!C20","v":67.5},{"$f":"科目外!O4","v":5},{"$f":"IF(INT(E11*D11/100+F11+0.5)>=100,100,INT(E11*D11/100+F11+0.5))","v":53},{"$f":"C11*0.6+G11*0.4","v":81.2},null,"Ａ","（１）\n【 教養 】",{"$f":"'【 教養 】'!C21","v":100}]
[null,"（２）\n【 視点 】",{"$f":"'【 視点 】'!C18","v":75},{"$f":"'【 視点 】'!C19","v":60},{"$f":"'【 視点 】'!C20","v":75},{"$f":"科目外!O6","v":2},{"$f":"IF(INT(E12*D12/100+F12+0.5)>=100,100,INT(E12*D12/100+F12+0.5))","v":47},{"$f":"C12*0.6+G12*0.4","v":63.8},null,null,"（２）\n【 視点 】",{"$f":"'【 視点 】'!C21","v":75}]
[null,"（３）\n【 倫理 】",{"$f":"'【 倫理 】'!C19","v":0},{"$f":"'【 倫理 】'!C20","v":19},{"$f":"'【 倫理 】'!C21","v":70},{"$f":"科目外!O8","v":0},13,5.2,null,null,"（３）\n【 倫理 】",{"$f":"'【 倫理 】'!C22","v":0}]
["Ｂ","（１）\n【 基礎 】",{"$f":"'【 基礎 】'!C20","v":77},{"$f":"'【 基礎 】'!C21","v":77},{"$f":"'【 基礎 】'!C22","v":50},{"$f":"科目外!O10","v":3},42,63,null,"Ｂ","（１）\n【 基礎 】",{"$f":"'【 基礎 】'!C23","v":100}]
[null,"（２）\n【 専門 】",{"$f":"'【 専門 】'!C25","v":42},{"$f":"'【 専門 】'!C26","v":42},{"$f":"'【 専門 】'!C27","v":76.666666666666671},{"$f":"科目外!O12","v":5},37,40,null,null,"（２）\n【 専門 】",{"$f":"'【 専門 】'!C28","v":83}]
[null,"（３）\n【 開発 】",{"$f":"'【 開発 】'!C25","v":10},{"$f":"'【 開発 】'!C26","v":7},{"$f":"'【 開発 】'!C27","v":70},{"$f":"科目外!O14","v":5},10,10,null,null,"（３）\n【 開発 】",{"$f":"'【 開発 】'!C28","v":21}]
["Ｃ","（１）\n【 国際 】",{"$f":"'【 国際 】'!C19","v":83},{"$f":"'【 国際 】'!C20","v":69},{"$f":"'【 国際 】'!C21","v":60},{"$f":"科目外!O16","v":3},44,67.400000000000006,null,"Ｃ","（１）\n【 国際 】",{"$f":"'【 国際 】'!C22","v":100}]
[null,"（２）\n【 論理 】",{"$f":"'【 論理 】'!C16","v":33},{"$f":"'【 論理 】'!C17","v":20},{"$f":"'【 論理 】'!C18","v":75},{"$f":"科目外!O18","v":1},16,26.200000000000003,null,null,"（２）\n【 論理 】",{"$f":"'【 論理 】'!C19","v":33}]
["Ｄ","（１）\n【 自発 】",{"$f":"'【 自発 】'!C21","v":39},{"$f":"'【 自発 】'!C22","v":38},{"$f":"'【 自発 】'!C23","v":40},{"$f":"科目外!O20","v":2},17,30.2,null,"Ｄ","（１）\n【 自発 】",{"$f":"'【 自発 】'!C24","v":53}]
[null,"（２）\n【 計画 】",{"$f":"'【 計画 】'!C15","v":0},{"$f":"'【 計画 】'!C16","v":0},{"$f":"'【 計画 】'!C17","v":0},{"$f":"科目外!O22","v":2},2,0.8,null,null,"（２）\n【 計画 】",{"$f":"'【 計画 】'!C18","v":0}]
[null,"（３）\n【 ﾘｰﾀﾞｰ 】",{"$f":"'【 ﾘｰﾀﾞｰ 】'!C20","v":25},{"$f":"'【 ﾘｰﾀﾞｰ 】'!C21","v":34},{"$f":"'【 ﾘｰﾀﾞｰ 】'!C22","v":97.5},{"$f":"科目外!O24","v":5},38,30.200000000000003,null,null,"（３）\n【 ﾘｰﾀﾞｰ 】",{"$f":"'【 ﾘｰﾀﾞｰ 】'!C23","v":25}]
[null,"【 達成度評価基準の実現度は，自己デザイン学習に対する実施率×評価点＋自己評価点で与えている】"]
[null,"【 総合評価点は，達成要件の達成率×0.6＋達成度評価基準の実現度×0.4で与えている】"]
[]
["【 自発的学習計画と達成状況自己評価表 】"]
[]
["学習・教育\n到達目標",null,"自発的学習計画（技術者としての自己デザインのための自発的学習，特に，他分野の人とチームを構成し，協働して目的を遂行する学習)",null,null,null,null,null,null,"自発的学習計画の達成状況に対する自己評価"]
[]
["Ａ","（１）\n【 教養 】",{"$f":"科目外!M4","v":"A(1)の自発的学習計画を書く"},null,null,null,null,null,null,{"$f":"科目外!N4","v":"A(1)の自己評価を書く"}]
[null,"（２）\n【 視点 】",{"$f":"科目外!M6","v":"A(２)の自発的学習計画を書く"},null,null,null,null,null,null,{"$f":"科目外!N6","v":"A(２)の自己評価を書く"}]
[null,"（３）\n【 倫理 】",{"$f":"科目外!M8","v":"A(３)の自発的学習計画を書く"},null,null,null,null,null,null,{"$f":"科目外!N8","v":"A(３)の自己評価を書く"}]
["Ｂ","（１）\n【 基礎 】",{"$f":"科目外!M10","v":"B(1)の自発的学習計画を書く"},null,null,null,null,null,null,{"$f":"科目外!N10","v":"B(1)の自己評価を書く"}]
[null,"（２）\n【 専門 】",{"$f":"科目外!M12","v":"B(２)の自発的学習計画を書く"},null,null,null,null,null,null,{"$f":"科目外!N12","v":"B(2)の自己評価を書く"}]
[null,"（３）\n【 開発 】",{"$f":"科目外!M14","v":"B(３)の自発的学習計画を書く"},null,null,null,null,null,null,{"$f":"科目外!N14","v":"B(3)の自己評価を書く"}]
["Ｃ","（１）\n【 国際 】",{"$f":"科目外!M16","v":"C(1)の自発的学習計画を書く"},null,null,null,null,null,null,{"$f":"科目外!N16","v":"C(1)の自己評価を書く"}]
[null,"（２）\n【 論理 】",{"$f":"科目外!M18","v":"C(2）の自発的学習計画を書く"},null,null,null,null,null,null,{"$f":"科目外!N18","v":"C(2)の自己評価を書く"}]
["Ｄ","（１）\n【 自発 】",{"$f":"科目外!M20","v":"D(1)の自発的学習計画を書く"},null,null,null,null,null,null,{"$f":"科目外!N20","v":"D(1)の自己評価を書く"}]
[null,"（２）\n【 計画 】",{"$f":"科目外!M22","v":"D(２)の自発的学習計画を書く"},null,null,null,null,null,null,{"$f":"科目外!N22","v":"D(２)の自己評価を書く"}]
[null,"（３）\n【 ﾘｰﾀﾞｰ 】",{"$f":"科目外!M24","v":"D(３)の自発的学習計画を書く"},null,null,null,null,null,null,{"$f":"科目外!N24","v":"D(３)の自己評価を書く"}]
[]
[]
[null,null,null,"出力ﾌｧｲﾙは，『学籍番号.csv』",null,null,null,null,null,null,null,"今期の登録単位一覧の出力ﾌｧｲﾙ名は，『登録単位(学籍番号).csv』"]
[]
[]
[null,null,null,"上記の画面をPDF出力，ファイル名『学籍番号.pdf』",null,null,null,null,null,null,null,"これまでの取得単位一覧の出力ﾌｧｲﾙ名は，『取得単位(学籍番号).csv』"]

{"sheet":"達成度自己評価表表紙","index":17,"n_rows":6,"n_cols":1,"rows_kept":6,"cut":false,"hidden":false,"merged":[[5,0,5,14],[4,0,4,14],[1,0,1,14],[0,0,0,14],[2,0,2,14],[3,0,3,14]]}
[]
["達成度自己評価表"]
[]
["令和7年度入学生用"]
[]
["　これ以降のワークシートは学習・教育到達目標ごとの達成度自己評価表です．先の，語学，教養，専門，科目外のワークシートの背景色が黄色の部分に入力した内容にしたがって，達成率と換算成績点を自動計算します．その計算方法は各ワークシート内に明記していますので，これを参考にして高い成績を取るようにして下さい．"]

{"sheet":"【 教養 】","index":18,"n_rows":21,"n_cols":7,"rows_kept":21,"cut":false,"hidden":false,"merged":[[17,3,26,7],[14,4,14,5],[18,0,19,0],[0,0,0,7],[2,0,2,7],[3,0,3,7],[1,0,1,7],[4,0,4,7],[7,2,9,2],[12,0,12,1],[5,0,6,1],[7,6,9,6],[7,0,9,0],[5,3,5,5],[7,5,11,5]]}
["平成15年12月11日制定，令和6年3月3１日改定"]
[]
["Ａ. 豊かな教養と地球的視点を備え，技術者の社会的責任を認識できる．"]
["　（１）スポーツや芸術に慣れ親しみ，人間性豊かな思考のできる教養を備える．【 教養 】"]
[]
["達成度評価対象",null,"達成要件","自己デザイン",null,null,"今期終了時の目標"]
[null,null,"達成率","実施率","成績換算点","活動点","達成要件の達成率"]
["基盤教養科目","｢人と文化｣に属する科目",{"$f":"IF(SUM(教養!R72:R161)>=6,1,SUM(教養!R72:R161)/6)","v":1},{"$f":"IF(SUM(教養!R72:R104)>=2,1,SUM(教養!R72:R104)/2)","v":1},{"$f":"IF(SUM(教養!R72:R104)=0,0,SUM(教養!U72:U104)/SUM(教養!R72:R104))","v":21.666666666666668},{"$f":"IF(SUM([1]教養!R73:R160)+SUM([1]教養!R44:R52)+SUM([1]教養!R177:R187)<=10,0,(SUM([1]教養!R73:R160)+SUM([1]教養!R44:R52)+SUM([1]教養!R177:R187)-10)/2)","v":0.5},{"$f":"IF(SUM(教養!R72:R161)+SUM(教養!V72:V161)>=6,1,(SUM(教養!R72:R161)+SUM(教養!V72:V161))/6)","v":1}]
[null,"｢人と社会｣に属する科目",null,{"$f":"IF(SUM(教養!R105:R132)>=2,1,SUM(教養!R105:R132)/2)","v":1},{"$f":"IF(SUM(教養!R105:R132)=0,0,SUM(教養!U105:U132)/SUM(教養!R105:R132))","v":30}]
[null,"｢人と自然｣に属する科目",null,{"$f":"IF(SUM(教養!R133:R161)>=2,1,SUM(教養!R133:R161)/2)","v":1},{"$f":"IF(SUM(教養!R133:R161)=0,0,SUM(教養!U133:U161)/SUM(教養!R133:R161))","v":20}]
["実践教養科目","｢心身の健康｣に属する科目","――",{"$f":"IF(SUM(教養!R26:R34)>=2,1,SUM(教養!R26:R34)/2)","v":1},{"$f":"IF(SUM(教養!R26:R34)=0,0,SUM(教養!U26:U34)/SUM(教養!R26:R34))","v":30},null,"――"]
["高年次配当科目","A(1)に関連する科目","――",{"$f":"IF(SUM(教養!R179:R189)>=2,1,SUM(教養!R179:R189)/2)","v":0},{"$f":"IF(SUM(教養!R179:R189)=0,0,SUM(教養!U179:U189)/SUM(教養!R179:R189))","v":0},null,"――"]
["スポーツや芸術等に係る身体的もしくは創作的な活動（１点／６ヶ月として累積で評価）",null,"――",{"$f":"科目外!E4/8","v":0.25},"――",{"$f":"科目外!E4","v":2},"――"]
[null,"合 計",{"$f":"C8","v":1},{"$f":"SUM(D8:D13)","v":4.25},{"$f":"IF(SUM(D8:D12)=0,0,(D8*E8+D9*E9+D10*E10+D11*E11+D12*E12)/SUM(D8:D12))","v":25.416666666666668},{"$f":"SUM(F11:F13)","v":2},{"$f":"SUM(G8:G13)","v":1}]
[null,"満点",1,6,40,null,1]
[]
[]
["達成要件","達成率 (%)",{"$f":"INT(C14/C15*100+0.5)","v":100},"・『実施率』は達成度評価対象項目ごとの評価基準より算出している．\n・『成績換算点』は項目ごとの全ての単位取得科目の成績の平均であり，各最大30点となる．\n・「身体的もしくは創作的な活動」の『実施率』は全8半期に対する活動を行った半期数の割合として計算している．\n・『活動点』は関連科目の総取得単位数が10単位より多い場合に，1単位につき1点を付与するほか，「身体的もしくは創作的活動」を行った半期数として与え，合計で最大10点としている．\n・『成績換算点』の合計は『実施率』加重平均として与えている．\n・『評価点』は，（『成績換算点』＋『活動点』）の最大40点を100点換算して与えている．"]
["自己デザイン","実施率 (%)",{"$f":"INT(D14/D15*100+0.5)","v":71}]
[null,"評価点",{"$f":"INT(E14+F14+0.5)*10/4","v":67.5}]
["今期の目標","達成率 (%)",{"$f":"INT($G$14*100+0.5)","v":100}]

{"sheet":"【 視点 】","index":19,"n_rows":21,"n_cols":7,"rows_kept":21,"cut":false,"hidden":false,"merged":[[17,3,29,7],[6,3,6,5],[14,4,14,5],[18,0,19,0],[0,0,0,8],[3,0,3,8],[1,0,1,8],[5,0,5,8],[2,0,2,8],[4,0,4,7],[6,0,7,1],[8,0,8,1],[10,0,10,1],[9,0,9,1],[11,0,11,1],[12,0,12,1]]}
[]
["Ａ. 豊かな教養と地球的視点を備え，技術者の社会的責任を認識できる．"]
["　（２）地球的視点で物事を考える素養と能力を有する．【 視点 】"]
[]
["解説 ： ここで言う「地球的視点で物事を考える」とは，「歴史や文化，習慣や風土，あるいは価値観などの多様性を学ぶことで，幸せや豊かさの概念が多岐に渡ることを認識して，物事を考える」という意味である．特に，環境問題は，自身と他者の幸せや豊かさの概念がぶつかり合う問題であり，本教育プログラムでは，環境マネジメント活動を通じてこの能力を涵養することを意図している．"]
[]
["達成度評価対象",null,"達成要件","自己デザイン",null,null,"今期終了時の目標"]
[null,null,"達成率","実施率","成績換算点","活動点","達成要件の達成率"]
["実践教養科目",null,{"$f":"IF(SUM(教養!R5:R71)>=10,1,SUM(教養!R5:R71)/10)","v":1},{"$f":"IF(SUM(教養!R5:R71)>=10,1,SUM(教養!R5:R71)/10)","v":1},{"$f":"IF(SUM(教養!R5:R71)=0,0,SUM(教養!U5:U71)/SUM(教養!R5:R71))","v":25.9375},"――",{"$f":"IF(SUM(教養!R5:R71)+SUM(教養!V5:V71)>=10,1,(SUM(教養!R5:R71)+SUM(教養!V5:V71))/10)","v":1}]
["高年次配当科目",null,{"$f":"IF(SUM(教養!R162:R194)>=2,1,SUM(教養!R162:R194)/2)","v":0},{"$f":"IF(SUM(教養!R162:R194)>=2,1,SUM(教養!R162:R194)/2)","v":0},{"$f":"IF(SUM(教養!R162:R194)=0,0,SUM(教養!U162:U194)/SUM(教養!R162:R194))","v":0},"――",{"$f":"IF(SUM(教養!R162:R194)+SUM(教養!V162:V194)>=2,1,(SUM(教養!R162:R194)+SUM(教養!V162:V194))/2)","v":0}]
["全学共通科目",null,{"$f":"IF(SUM(教養!R5:R194)+SUM(英語!R5:R10)>=32,1,(SUM(教養!R5:R194)+SUM(英語!R5:R10))/32)","v":1},{"$f":"IF(SUM(教養!R5:R194)+SUM(英語!R5:R10)>=32,1,(SUM(教養!R5:R194)+SUM(英語!R5:R10))/32)","v":1},"――",{"$f":"IF(SUM(教養!R5:R194)+SUM(英語!R5:R10)<=32,0,SUM(教養!R5:R194)+SUM(英語!R5:R10)-32)","v":2},{"$f":"IF(SUM(教養!R5:R194)+SUM(英語!R5:R10)+SUM(教養!V5:V194)+SUM(英語!V5:V10)>=32,1,(SUM(教養!R5:R194)+SUM(英語!R5:R10)+SUM(教養!V5:V194)+SUM(英語!V5:V10))/32)","v":1}]
["《エンジニアのためのリテラシー》",null,{"$f":"専門!R5/専門!D5","v":1},{"$f":"C12","v":1},{"$f":"IF(専門!S5=1,専門!T5,専門!T5*0.8)","v":30},"――",{"$f":"IF(専門!R5+専門!V5>=2,1,0)","v":1}]
["歴史，文化，価値観等に係る文化的な活動（読書，寺社仏閣・名跡探訪，旅行等）",null,"――",{"$f":"科目外!E6/8","v":0},"――",{"$f":"科目外!E6","v":0},"――"]
[null,"合 計",{"$f":"SUM(C9:C12)","v":3},{"$f":"SUM($D$9:$D$13)","v":3},{"$f":"IF(D9+D10+D12=0,0,(D9*E9+D10*E10+D12*E12)/(D9+D10+D12))","v":27.96875},{"$f":"IF(F11+F13>10,10,F11+F13)","v":2},{"$f":"SUM(G9:G12)","v":3}]
[null,"満点",4,5,40,null,4]
[]
[]
["達成要件","達成率 (%)",{"$f":"INT(C14/C15*100+0.5)","v":75},"・『実施率』は達成度評価対象項目ごとの評価基準より算出している．\n・『成績換算点』は項目ごとの全ての単位取得科目の成績の平均であり，各最大30点となる．\n・必修科目の『成績換算点』は開講年次に単位取得した場合に成績点の100％として，それ以外は80％として与える．\n・「文化的な活動」の『実施率』は全8半期に対する活動を行った半期数の割合として計算している．\n・『活動点』は全学共通科目の総取得単位数が32単位より多い場合に，1単位につき1点を付与するほか，「文化的な活動」を行った半期数として与え，合計で最大10点としている．\n・『成績換算点』の合計は『実施率』加重平均として与えている．\n・『評価点』は，（『成績換算点』＋『活動点』）の最大40点を100点換算して与えている．"]
["自己デザイン","実施率 (%)",{"$f":"INT(D14/D15*100+0.5)","v":60}]
[null,"評価点",{"$f":"INT(E14+F14+0.5)*10/4","v":75}]
["今期の目標","達成率 (%)",{"$f":"INT($G$14*100/G15+0.5)","v":75}]

{"sheet":"【 倫理 】","index":20,"n_rows":22,"n_cols":7,"rows_kept":22,"cut":false,"hidden":false,"merged":[[19,0,20,0],[17,0,17,6],[6,0,7,1],[8,0,8,1],[9,0,9,1],[13,0,13,1],[6,3,6,5],[10,0,10,1],[18,3,31,7],[5,0,5,6],[16,0,16,6],[0,0,0,6],[3,0,3,6],[1,0,1,7],[2,0,2,7],[4,0,4,7],[15,4,15,5]]}
[]
["A. 豊かな教養と地球的視点を備え，技術者の社会的責任を認識できる．"]
["　（３） 科学技術の発展とそれが自然環境，生命，社会などに及ぼす効果や影響を理解できる．【 倫理 】"]
[]
["解説 ： 技術者の社会に対する責任（技術者倫理）と貢献について理解することも含む．"]
[]
["達成度評価対象",null,"達成要件","自己デザイン",null,null,"今期終了時の目標"]
[null,null,"達成率","実施率","成績換算点","活動点","達成要件の達成率"]
["《機械工学実験Ⅰ》",null,{"$f":"IF(専門!R68/専門!D68=1,1,0)","v":0},{"$f":"C9","v":0},{"$f":"IF(専門!S68<=3,専門!T68,専門!T68*0.8)","v":0},"――",{"$f":"専門!R68+専門!V68","v":0}]
["《機械工学実験Ⅱ》",null,{"$f":"IF(専門!R69/専門!D69=1,1,0)","v":0},{"$f":"C10","v":0},{"$f":"IF(専門!S69<=3,専門!T69,専門!T69*0.8)","v":0},"――",{"$f":"専門!R69+専門!V69","v":0}]
["環境安全マネジメント活動",null,{"$f":"科目外!E8","v":0},0,"――","――",{"$f":"(科目外!E8+科目外!H8)","v":0}]
["実践教養科目","｢キャリア・技術者基盤｣に属する科目","――",{"$f":"IF(SUM(教養!R5:R14)>=2,1,SUM(教養!R5:R14)/2)","v":1},{"$f":"IF(SUM(教養!R5:R14)=0,0,SUM(教養!U5:U14)/SUM(教養!R5:R14))","v":23.333333333333332},{"$f":"IF(SUM(教養!R5:R14)<=2,0,SUM(教養!R5:R14)-2)","v":4},"――"]
["高年次配当科目","A(3)に関連する科目","――",{"$f":"IF(SUM(教養!R162:R166)>=2,1,SUM(教養!R162:R166)/2)","v":0},{"$f":"IF(SUM(教養!R162:R166)=0,0,SUM(教養!U162:U166)/SUM(教養!R162:R166))","v":0},{"$f":"IF(SUM(教養!R162:R166)<=2,0,SUM(教養!R162:R166)-2)","v":0},"――"]
["科学技術や自然環境，生命等に係る社会的な活動（読書，イベント参加，ボランティア等）",null,"――",{"$f":"科目外!E10/8","v":0.125},"――",{"$f":"科目外!E10","v":1},"――"]
[null,"合 計",{"$f":"SUM(C9:C14)","v":0},{"$f":"SUM(D9:D14)","v":1.125},{"$f":"IF(D9+D10+D12+D13=0,0,(D9*E9+D10*E10+D12*E12+D13*E13)/(D9+D10+D12+D13))","v":23.333333333333332},{"$f":"IF(SUM(F12:F14)>=10,10,SUM(F12:F14))","v":5},{"$f":"SUM(G9:G14)","v":0}]
[null,"満点",3,6,40,null,3]
[]
[]
["達成要件","達成率 (%)",{"$f":"INT(C15/C16*100+0.5)","v":0},"・『実施率』は達成度評価対象項目ごとの評価基準より算出している．\n・『成績換算点』は項目ごとの全ての単位取得科目の成績の平均であり，各最大30点となる．\n・必修科目の『成績換算点』は開講年次に単位取得した場合に成績点の100％として，それ以外は80％として与えている．\n・「社会的な活動」の『実施率』は全8半期に対する活動を行った半期数の割合として計算している．\n・『活動点』は実践教養科目と高年次配当科目の関連する科目の総取得単位数がそれぞれ2単位より多い場合に，1単位につき1点を付与するほか，「社会的な活動」を行った半期数として与え，合計で最大10点としている．\n・『成績換算点』の合計は『実施率』加重平均として与えている．\n・『評価点』は，（『成績換算点』＋『活動点』）の最大40点を100点換算して与えている．"]
["自己デザイン","実施率 (%)",{"$f":"INT(D15/D16*100+0.5)","v":19}]
[null,"評価点",{"$f":"INT(E15+F15+0.5)*10/4","v":70}]
["今期の目標","達成率 (%)",{"$f":"INT(G15*100/G16+0.5)","v":0}]

{"sheet":"【 基礎 】","index":21,"n_rows":29,"n_cols":8,"rows_kept":29,"cut":false,"hidden":false,"merged":[[0,0,0,7],[2,0,2,7],[1,0,1,7],[3,0,3,7],[18,0,18,7],[17,0,17,7],[16,5,16,6],[6,0,8,0],[13,0,14,0],[9,0,11,0],[4,4,4,6],[4,2,5,2],[4,0,5,0],[4,1,5,1],[24,0,24,2],[6,6,13,6],[19,3,26,8],[20,0,21,0]]}
[]
["Ｂ. 幅広い基礎学力と専門知識を備える．"]
["　（１） 数学・物理・情報技術などの基礎学力を有する．【 基礎 】"]
[]
["細　　目","達成度評価対象","開講年次","達成要件","自己デザイン",null,null,"今期終了時の目標"]
[null,null,null,"達成率","実施率","成績換算点","活動点","達成要件の達成率"]
["（ａ）数学の基礎を習得","基礎解析Ⅰ",1,{"$f":"専門!R8/専門!D8","v":1},{"$f":"D7","v":1},{"$f":"IF(専門!S8=C7,専門!T8,専門!T8*0.8)","v":20},"――",{"$f":"(専門!R8+専門!V8)/専門!D8","v":1}]
[null,"線形代数学Ⅰ",1,{"$f":"専門!R10/専門!D10","v":1},1,{"$f":"IF(専門!S10=C8,専門!T10,専門!T10*0.8)","v":20},null,{"$f":"(専門!R10+専門!V10)/専門!D10","v":1}]
[null,"統計数理",2,{"$f":"専門!R16/専門!D16","v":1},1,{"$f":"IF(専門!S14=C9,専門!T14,専門!T14*0.8)","v":20},null,{"$f":"(専門!R16+専門!V16)/専門!D16","v":1}]
["（ｂ）物理学の基礎を習得","工業力学Ⅰ",1,{"$f":"専門!R48/専門!D48","v":1},1,{"$f":"IF(専門!S48=C10,専門!T48,専門!T48*0.8)","v":20},null,{"$f":"(専門!R48+専門!V48)/専門!D48","v":1}]
[null,"工業力学Ⅱ",1,{"$f":"専門!R49/専門!D49","v":1},1,{"$f":"IF(専門!S49=C11,専門!T49,専門!T49*0.8)","v":20},null,{"$f":"(専門!R49+専門!V49)/専門!D49","v":1}]
[null,"物理学実験法及び基礎実験",2,{"$f":"専門!R29/専門!D29","v":0},0,{"$f":"IF(専門!S29=C12,専門!T29,専門!T29*0.8)","v":0},null,{"$f":"(専門!R29+専門!V29)/専門!D29","v":1}]
["（ｃ）情報技術の基礎を習得","データサイエンス",3,{"$f":"専門!R63/専門!D63","v":0},0,{"$f":"IF(専門!S63=C13,専門!T63,専門!T63*0.8)","v":0},null,{"$f":"(専門!R63+専門!V63)/専門!D63","v":0}]
["（d）自然科学の基礎を習得","専門基礎科目の選択必修科目","――",{"$f":"IF(B27>=14,1,B27/14)","v":0.5714285714285714},{"$f":"D14","v":0.5714285714285714},{"$f":"IF(専門!R9+専門!R11+専門!R14+SUM(専門!R17:R20)+SUM(専門!R27:R28)+SUM(専門!R30:R31)=0,0,(専門!U9+専門!U11+専門!U14+SUM(専門!U17:U20)+SUM(専門!U27:U28)+SUM(専門!U30:U31))/(専門!R9+専門!R11+専門!R14+SUM(専門!R17:R20)+SUM(専門!R27:R28)+SUM(専門!R30:R31)))","v":20},null,{"$f":"IF(B28>=14,1,B28/14)","v":1}]
[null,"専門基礎科目","――",{"$f":"(A27+IF(B27<=14,B27+IF(C27>=3,3,C27),IF(B27+C27>=17,17,B27+C27)))/24","v":0.625},{"$f":"D15","v":0.625},"――",{"$f":"IF(B27+C27<=17,0,B27+C27-17)","v":0},{"$f":"(A28+IF(B28<=14,B28+IF(C28>=3,3,C28),IF(B28+C28>=17,17,B28+C28)))/24","v":1}]
[null,null,"合計",{"$f":"SUM($E$7:$E$15)","v":6.1964285714285712},{"$f":"SUM(E7:E15)","v":6.1964285714285712},{"$f":"IF(SUM(E7:E14)=0,0,(E7*F7+E8*F8+E9*F9+E10*F10+E11*F11+E12*F12+E13*F13+E14*F14)/SUM(E7:E14))","v":20},{"$f":"IF(G15>=10,10,G15)","v":0},{"$f":"SUM($H$7:$H$15)","v":8}]
[null,null,"満点",8,8,40,null,8]
[]
[]
["達成要件","達成率 (%)",{"$f":"INT(D16/D17*100+0.5)","v":77},"・『実施率』は達成度評価対象項目ごとの評価基準より算出している．\n・『成績換算点』は項目ごとの全ての単位取得科目の成績の平均であり，各最大30点となる．\n・必修科目の『成績換算点』は開講年次に単位取得した場合に成績点の100％として，それ以外は80％として与えている．\n・『活動点』は専門基礎科目の選択必修科目と選択科目を合わせた総取得単位数が17単位より多い場合に，1単位につき1点を付与し，合計で最大10点まで評価に反映している．\n・『成績換算点』の合計は『実施率』加重平均として与えている．\n・『評価点』は，（『成績換算点』＋『活動点』）の最大40点を100点換算して与えている．"]
["自己デザイン","実施率 (%)",{"$f":"INT(E16/E17*100+0.5)","v":77}]
[null,"評価点",{"$f":"INT(F16+G16+0.5)*10/4","v":50}]
["今期の目標","達成率 (%)",{"$f":"INT(H16/H17*100+0.5)","v":100}]
[]
["専門基礎科目単位数"]
["必修","選択必修","選択"]
[{"$f":"専門!R8+専門!R10+専門!R16+専門!R29","v":6},{"$f":"専門!R9+専門!R11+専門!R14+SUM(専門!R17:R20)+SUM(専門!R27:R28)+SUM(専門!R30:R31)","v":8},{"$f":"SUM(専門!R12:R13)+専門!R15+SUM(専門!R21:R26)+SUM(専門!R32:R47)","v":1}]
[{"$f":"専門!R8+専門!R10+専門!R16+専門!R29+専門!V8+専門!V10+専門!V16+専門!V29","v":7},{"$f":"専門!R9+専門!R11+専門!R14+SUM(専門!R17:R20)+SUM(専門!R27:R28)+SUM(専門!R30:R31)+専門!V9+専門!V11+専門!V14+SUM(専門!V17:V20)+SUM(専門!V27:V28)+SUM(専門!V30:V31)","v":17},{"$f":"SUM(専門!R12:R13)+専門!R15+SUM(専門!R21:R26)+SUM(専門!R32:R47)+SUM(専門!V12:V13)+専門!V15+SUM(専門!V21:V26)+SUM(専門!V32:V47)","v":1}]
[7,14,"-"]

{"sheet":"【 専門 】","index":22,"n_rows":28,"n_cols":8,"rows_kept":28,"cut":false,"hidden":false,"merged":[[5,0,5,7],[0,0,0,7],[1,0,1,7],[2,0,2,7],[4,0,4,7],[3,0,3,7],[24,3,31,8],[25,0,26,0],[17,0,18,0],[14,0,15,0],[12,0,13,0],[23,0,23,7],[22,0,22,7],[8,6,19,6],[6,4,6,6],[21,5,21,6],[6,0,7,0],[6,1,7,1],[6,2,7,2],[10,0,11,0],[8,0,9,0]]}
[]
["B. 幅広い基礎学力と専門知識を備える．"]
["　（２） 伝統的機械工学の専門知識を修得している．【 専門 】"]
[]
["解説 ： ここで言う「伝統的機械工学の専門知識」とは，長年，機械工学の根幹をなしてきた力学と機械設計の知識であり，現代の機械技術者にとっても習得しなければならない基本知識である．"]
[]
["細　　目","達成度評価対象","開講年次","達成要件","自己デザイン",null,null,"今期終了時の目標"]
[null,null,null,"達成率","実施率","成績換算点","活動点","達成要件の達成率"]
["（ａ）材料力学の知識を習得","材料力学Ⅰ及び演習",1,{"$f":"専門!R50/専門!D50","v":1},{"$f":"D9","v":1},{"$f":"IF(専門!S50=C9,専門!T50,専門!T50*0.8)","v":20},"――",{"$f":"(専門!R50+専門!V50)/専門!D50","v":1}]
[null,"材料力学Ⅱ及び演習",2,{"$f":"専門!R51/専門!D51","v":0},{"$f":"D10","v":0},{"$f":"IF(専門!S51=C10,専門!T51,専門!T51*0.8)","v":0},null,{"$f":"(専門!R51+専門!V51)/専門!D51","v":0}]
["（ｂ）熱力学の知識を習得","熱力学Ⅰ及び演習A・B",2,{"$f":"SUM(専門!R52:R53)/SUM(専門!D52:D53)","v":1},1,{"$f":"IF(SUM(専門!R52:R53)=0,0,(IF(専門!S52=C11,専門!T52,専門!T52*0.8)+IF(専門!S53=C11,専門!T53,専門!T53*0.8))/SUM(専門!R52:R53))","v":25},null,{"$f":"(専門!R52+専門!V52+専門!R53+専門!V53)/(専門!D52+専門!D53)","v":2}]
[null,"熱力学Ⅱ及び演習A・B",2,{"$f":"SUM(専門!R54:R55)/SUM(専門!D54:D55)","v":0},0,{"$f":"IF(SUM(専門!R54:R55)=0,0,IF(専門!S54=C12,専門!T54,専門!T54*0.8)+IF(専門!S55=C12,専門!T55,専門!T55*0.8)/SUM(専門!R54:R55))","v":0},null,{"$f":"(専門!R54+専門!V54+専門!R55+専門!V55)/(専門!D54+専門!D55)","v":1}]
["（ｃ）流体力学の知識を習得","流体力学Ⅰ及び演習A・B",2,{"$f":"SUM(専門!R58:R59)/SUM(専門!D58:D59)","v":0},0,{"$f":"IF(SUM(専門!R58:R59)=0,0,(IF(専門!S58=C13,専門!T58,専門!T58*0.8)+IF(専門!S59=C13,専門!T59,専門!T59*0.8))/SUM(専門!R58:R59))","v":0},null,{"$f":"(専門!R58+専門!V58+専門!R59+専門!V59)/(専門!D58+専門!D59)","v":1}]
[null,"流体力学Ⅱ及び演習",3,{"$f":"専門!R60/専門!D60","v":0},0,{"$f":"IF(専門!S60=C14,専門!T60,専門!T60*0.8)","v":0},null,{"$f":"(専門!R60+専門!V60)/専門!D60","v":0}]
["（ｄ）機械力学の知識を習得","機械力学Ⅰ及び演習",2,{"$f":"専門!R56/専門!D56","v":1},1,{"$f":"IF(専門!S56=C15,専門!T56,専門!T56*0.8)","v":20},null,{"$f":"(専門!R56+専門!V56)/専門!D56","v":1}]
[null,"機械力学Ⅱ及び演習",2,{"$f":"専門!R57/専門!D57","v":0},0,{"$f":"IF(専門!S57=C16,専門!T57,専門!T57*0.8)","v":0},null,{"$f":"(専門!R57+専門!V57)/専門!D57","v":1}]
["（ｅ）設計法の知識を習得","《創造設計製図演習》（一般）\n《地域創生課題セミナーⅠ》（地域）",3,{"$f":"専門!R67/専門!D67+専門!R95/専門!D95","v":0},0,{"$f":"IF(専門!S67=C17,専門!T67,専門!T67*0.8)+IF(専門!S95=C17,専門!T95,専門!T95*0.8)","v":0},null,{"$f":"(専門!R67+専門!V67)/専門!D67","v":0}]
["（ｆ）製図法と規則を習得","機械製図法ⅠA・B",2,{"$f":"SUM(専門!R64:R65)/SUM(専門!D64:D65)","v":1},1,{"$f":"IF(SUM(専門!R64:R65)=0,0,(IF(専門!S64=C18,専門!T64,専門!T64*0.8)+IF(専門!S65=C18,専門!T65,専門!T65*0.8))/SUM(専門!R64:R65))","v":20},null,{"$f":"(専門!R64+専門!V64+専門!R65+専門!V65)/(専門!D64+専門!D65)","v":1}]
[null,"機械製図法Ⅱ",2,{"$f":"専門!R66/専門!D66","v":0},0,{"$f":"IF(専門!S66=C19,専門!T66,専門!T66*0.8)","v":0},null,{"$f":"(専門!R66+専門!V66)/専門!D66","v":1}]
["（ｇ）加工法の知識を習得","《機械加工法及び実習A・B》",2,{"$f":"SUM(専門!R61:R62)/SUM(専門!D61:D62)","v":1},1,{"$f":"IF(SUM(専門!R61:R62)=0,0,(IF(専門!S61=C20,専門!T61,専門!T61*0.8)+IF(専門!S62=C20,専門!T62,専門!T62*0.8))/SUM(専門!R61:R62))","v":30},null,{"$f":"(専門!R61+専門!V61+専門!R62+専門!V62)/(専門!D61+専門!D62)","v":1}]
[null,null,"合計",{"$f":"SUM(D9:D20)","v":5},{"$f":"SUM($E$9:$E$20)","v":5},{"$f":"IF(E21=0,0,(E9*F9+E10*F10+E11*F11+E12*F12+E13*F13+E14*F14+E15*F15+E16*F16+E17*F17+E18*F18+E19*F19+E20*F20)/E21)","v":23},"――",{"$f":"SUM(H9:H20)","v":10}]
[null,null,"満点",12,12,30,null,12]
[]
[]
["達成要件","達成率 (%)",{"$f":"INT(D21/D22*100+0.5)","v":42},"・『実施率』は達成度評価対象項目ごとの評価基準より算出している．\n・『成績換算点』は項目ごとの全ての単位取得科目の成績の平均であり，各最大30点となる．\n・必修科目の『成績換算点』は開講年次に単位取得した場合に成績点の100％として，それ以外は80％として与えている．\n・『成績換算点』の合計は『成績換算点』の『実施率』加重平均として与えている．\n・『評価点』は，『成績換算点』の最大30点を100点換算して与えている．"]
["自己デザイン","実施率 (%)",{"$f":"INT(E21/E22*100+0.5)","v":42}]
[null,"評価点",{"$f":"INT(F21+0.5)*10/3","v":76.666666666666671}]
["今期の目標","達成率 (%)",{"$f":"INT(H21/H22*100+0.5)","v":83}]

{"sheet":"【 開発 】","index":23,"n_rows":28,"n_cols":7,"rows_kept":28,"cut":false,"hidden":false,"merged":[[23,0,23,7],[25,0,26,0],[1,0,1,7],[2,0,2,7],[8,0,9,0],[10,4,16,4],[10,6,16,6],[10,2,15,2],[4,0,4,7],[6,1,7,1],[6,0,7,0],[6,3,6,5],[24,3,39,8],[17,0,19,0],[10,0,16,0],[0,0,0,6],[21,4,21,5],[22,0,22,7]]}
[]
["Ｂ. 幅広い基礎学力と専門知識を備える．"]
["　（３） 幅広い専門知識を応用して，時代や社会の変化と要求に対応した新たな機械システムを構築できる能力を有する．【 開発 】"]
[]
["解説 ： ｢新たな機械システムを構築できる能力｣とは，現在の課題や問題を設定・発見する能力や，これらを解決するための構想力・創造力である．"]
[]
["細　　目","達成度評価対象","達成要件","自己デザイン",null,null,"今期終了時の目標"]
[null,null,"達成率","実施率","成績換算点","活動点","達成要件の達成率"]
["（ａ）機械システムに関する幅広い専門知識を習得","課程専門科目に属する選択科目",{"$f":"IF(SUM(専門!R70:R91)+SUM(専門!R93:R94)+専門!R96+SUM(専門!R98:R99)+SUM(専門!R101:R102)>=20,1,(SUM(専門!R70:R91)+SUM(専門!R93:R94)+専門!R96+SUM(専門!R98:R99)+SUM(専門!R101:R102))/20)","v":0.2},{"$f":"C9","v":0.2},{"$f":"IF(SUM(専門!R70:R91)+SUM(専門!R93:R94)+専門!R96+SUM(専門!R98:R99)+SUM(専門!R101:R102)=0,0,(SUM(専門!U70:U91)+SUM(専門!U93:U94)+専門!U96+SUM(専門!U98:U99)+SUM(専門!U101:U102))/(SUM(専門!R70:R91)+SUM(専門!R93:R94)+専門!R96+SUM(専門!R98:R99)+SUM(専門!R101:R102)))","v":27.5},{"$f":"IF(SUM(専門!R70:R91)+SUM(専門!R93:R94)+SUM(専門!R96:R99)+SUM(専門!R101:R102)<=25,0,SUM(専門!R70:R91)+SUM(専門!R93:R94)+SUM(専門!R96:R99)+SUM(専門!R101:R102)-25)","v":0},{"$f":"IF(SUM(専門!R70:R91)+SUM(専門!R93:R94)+専門!R96+SUM(専門!R98:R102)+SUM(専門!V70:V91)+SUM(専門!V93:V94)+専門!R96+SUM(専門!V98:V102)>=20,1,(SUM(専門!R70:R91)+SUM(専門!R93:R94)+専門!R96+SUM(専門!R98:R99)+SUM(専門!R101:R102)+SUM(専門!V70:V91)+SUM(専門!V93:V94)+専門!R96+SUM(専門!V98:V99)+SUM(専門!R101:R102))/20)","v":0.6}]
[null,"専門教育科目",{"$f":"IF(SUM(専門!R5:R102)>=92,1,SUM(専門!R5:R102)/92)","v":0.38043478260869568},{"$f":"C10","v":0.38043478260869568},"――",{"$f":"IF(SUM(専門!R5:R102)<=92,0,SUM(専門!R5:R102)-92)","v":0},{"$f":"IF((SUM(専門!R5:R102)+SUM(専門!V5:V102))>=92,1,(SUM(専門!R5:R102)+SUM(専門!V5:V102))/92)","v":0.68478260869565222}]
["（ｂ）物づくりに関する最新の状況を知っている．","工場見学",{"$f":"IF(科目外!E12+科目外!E13+SUM(専門!R97:R99)+SUM(専門!R37:R38)>=1,1,0)","v":0},{"$f":"科目外!E12","v":0},"――",{"$f":"D11","v":0},{"$f":"IF(科目外!E12+科目外!E13+SUM(専門!R97:R99)+SUM(専門!R37:R38)+科目外!F12+科目外!F13+SUM(専門!V97:V99)+SUM(専門!V37:V38)>=1,1,0)","v":0}]
[null,"学術講演会",null,{"$f":"科目外!E13","v":0},null,{"$f":"D12","v":0}]
[null,"インターンシップA",null,{"$f":"専門!R37/専門!D37","v":0},null,0]
[null,"インターンシップB",null,{"$f":"専門!R38/専門!D38","v":0},null,0]
[null,"ものづくりインターンシップⅠ",null,{"$f":"専門!R97/専門!D97","v":0},null,0]
[null,"ものづくりインターンシップⅡ",null,{"$f":"専門!R98/専門!D98","v":0},null,0]
[null,"上記以外の工場見学，学術講演会等","――",{"$f":"IF(科目外!E15>=1,1,0)","v":0},null,{"$f":"科目外!E15","v":0}]
["（ｃ）実験等を遂行して，その結果を解析し，それを工学的に考察する能力を有している．","《機械工学実験Ⅰ》",{"$f":"専門!R68/専門!D68","v":0},{"$f":"C18","v":0},{"$f":"IF(専門!S68<=3,専門!T68,専門!T68*0.8)","v":0},"――",{"$f":"(専門!R68+専門!V68)/専門!D68","v":0}]
[null,"《機械工学実験Ⅱ》",{"$f":"専門!R69/専門!D69","v":0},{"$f":"C19","v":0},{"$f":"IF(専門!S69<=3,専門!T69,専門!T69*0.8)","v":0},"――",{"$f":"(専門!R69+専門!V69)/専門!D69","v":0}]
[null,"《卒業研究》（一般）\n《卒業プロジェクト》（地域）",{"$f":"専門!R92/専門!D92+専門!R100/専門!D100","v":0},{"$f":"C20","v":0},"――",{"$f":"科目外!E15","v":0},{"$f":"(専門!R92+専門!V92)/専門!D92+(専門!R100+専門!V92)/専門!D100","v":0}]
[null,"合計",{"$f":"SUM(D8:D20)","v":0.58043478260869574},{"$f":"SUM(D9:D10)+IF(SUM(D11:D17)>=3,3,SUM(D11:D17))+SUM(D18:D20)","v":0.58043478260869574},{"$f":"IF(D18+D19+D9=0,0,(D9*E9+D18*E18+D19*E19)/(D9+D18+D19))","v":27.5},{"$f":"IF(SUM(F9:F17)>=10,10,SUM(F9:F17))","v":0},{"$f":"SUM(G9:G20)","v":1.2847826086956522}]
[null,"満点",6,8,40,null,6]
[]
[]
["達成要件","達成率 (%)",{"$f":"INT(C21/C22*100+0.5)","v":10},"・『実施率』は達成度評価対象項目ごとの評価基準より算出している．\n・『成績換算点』は項目ごとの全ての単位取得科目の成績の平均であり，各最大30点となる．\n・必修科目の『成績換算点』は開講年次に単位取得した場合に成績点の100％として，それ以外は80％として与えている．\n・『活動点』は課程専門科目に属する選択科目と専門教育科目についてそれぞれ総取得単位数が20単位および92単位より多い場合に，1単位につき1点を付与している．\n・(b)に関しては，達成度評価項目について活動の実施もしくは講義の単位取得によって『実施率』が1となる．これらについては最大3点まで実施率の合計に考慮されている．なお，『活動点』は各項目の実施率１に対して1点が与えられている．\n・「《卒業研究》（一般）および《卒業プロジェクト》（地域）」の『活動点』は論文投稿，学会発表の実施に関するものである．\n・『成績換算点』の合計は『実施率』加重平均として与え，『活動点』の合計は最大で10点としている．\n・『評価点』は，（『成績換算点』＋『活動点』）の最大40点を100点換算して与えている．"]
["自己デザイン","実施率 (%)",{"$f":"INT(D21/D22*100+0.5)","v":7}]
[null,"評価点",{"$f":"INT(E21+F21+0.5)*10/4","v":70}]
["今期の目標","達成率 (%)",{"$f":"INT(G21/G22*100+0.5)","v":21}]

{"sheet":"【 国際 】","index":24,"n_rows":22,"n_cols":8,"rows_kept":22,"cut":false,"hidden":false,"merged":[[18,3,31,7],[6,6,11,6],[19,0,20,0],[15,5,15,6],[0,0,0,7],[1,0,1,7],[2,0,2,7],[3,0,3,7],[4,0,5,1],[4,2,5,2],[4,4,4,6],[17,0,17,7],[14,0,15,1],[16,0,16,7],[6,0,11,0],[13,0,13,1]]}
[]
["Ｃ. 国際的に通用する表現力と論理性を備える．"]
["　（１） 国際的な場でのコミュニケーション能力を有する．【 国際 】"]
[]
["達成度評価対象",null,"開講年次","達成要件","自己デザイン",null,null,"今期終了時の目標"]
[null,null,null,"達成率","実施率","成績換算点","活動点","達成要件の達成率"]
["英語教育科目","Interactive English A",1,{"$f":"英語!R5/英語!D5","v":1},{"$f":"D7","v":1},{"$f":"IF(英語!S5='【 国際 】'!C7,英語!T5,英語!T5*0.8)","v":15},"――",{"$f":"(英語!R5+英語!V5)/英語!D5","v":1}]
[null,"Interactive English B",1,{"$f":"英語!R6/英語!D6","v":1},{"$f":"D8","v":1},{"$f":"IF(英語!S6='【 国際 】'!C8,英語!T6,英語!T6*0.8)","v":20},null,{"$f":"(英語!R6+英語!V6)/英語!D6","v":1}]
[null,"Career English Basic",1,{"$f":"英語!R7/英語!D7","v":1},1,{"$f":"IF(英語!S7='【 国際 】'!C9,英語!T7,英語!T7*0.8)","v":30},null,{"$f":"(英語!R7+英語!V7)/英語!D7","v":1}]
[null,"Academic English",1,{"$f":"英語!R8/英語!D8","v":1},1,{"$f":"IF(英語!S8='【 国際 】'!C10,英語!T8,英語!T8*0.8)","v":20},null,{"$f":"(英語!R8+英語!V8)/英語!D8","v":1}]
[null,"Career English Intermediate",2,{"$f":"英語!R9/英語!D9","v":1},1,{"$f":"IF(英語!S9='【 国際 】'!C11,英語!T9,英語!T9*0.8)","v":25},null,{"$f":"(英語!R9+英語!V9)/英語!D9","v":1}]
[null,"Career English Advanced",2,{"$f":"英語!R10/英語!D10","v":0},0,{"$f":"IF(英語!S10='【 国際 】'!C12,英語!T10,英語!T10*0.8)","v":0},null,{"$f":"(英語!R10+英語!V10)/英語!D10","v":1}]
["実践教養科目","｢言語・コミュニケーション｣に属する科目","――","――",{"$f":"IF(SUM(教養!R46:R71)>=2,1,SUM(教養!R46:R71)/2)","v":0},{"$f":"IF(SUM(教養!R46:R71)=0,0,SUM(教養!U46:U71)/SUM(教養!R46:R71))","v":0},{"$f":"IF(SUM(教養!R46:R71)<=2,0,SUM(教養!R46:R71)-2)","v":0},"――"]
["外国語の資格試験の受験，留学等の国際コミュニケーション能力を高める活動",null,"――","――",{"$f":"科目外!E16/8","v":0.5},"――",{"$f":"科目外!E16","v":4},"――"]
[null,null,"合 計",{"$f":"SUM($D$7:$D$14)","v":5},{"$f":"SUM($E$7:$E$14)","v":5.5},{"$f":"IF(E15=0,0,(E7*F7+E8*F8+E9*F9+E10*F10+E11*F11+E12*F12+E13*F13)/E15)","v":20},{"$f":"IF(G13+G14>=10,10,G14+G13)","v":4},{"$f":"SUM(H7:H14)","v":6}]
[null,null,"満点",6,8,40,null,6]
[]
[]
["達成要件","達成率 (%)",{"$f":"INT(D15/D16*100+0.5)","v":83},"・『実施率』は達成度評価対象項目ごとの評価基準より算出している．\n・『成績換算点』は項目ごとの全ての単位取得科目の成績の平均であり，各最大30点となる．\n・必修科目の『成績換算点』は開講年次に単位取得した場合に成績点の100％として，それ以外は80％として与えている．\n・「国際コミュニケーション能力を高める活動」の『実施率』は全8半期に対する活動を行った半期数の割合として計算している．\n・『活動点』は関連科目の総取得単位数が2単位より多い場合に，1単位につき1点を付与するほか，「国際コミュニケーション能力を高める活動」を行った半期数として与え，合計で最大10点としている．\n・『成績換算点』の合計は『実施率』加重平均として与えている．\n・『評価点』は，（『成績換算点』＋『活動点』）の最大40点を100点換算して与えている．"]
["自己デザイン","実施率 (%)",{"$f":"INT(E15/E16*100+0.5)","v":69}]
[null,"評価点",{"$f":"INT(F15+G15+0.5)*10/4","v":60}]
["今期の目標","達成率 (%)",{"$f":"INT(H15*100/H16+0.5)","v":100}]

{"sheet":"【 論理 】","index":25,"n_rows":19,"n_cols":7,"rows_kept":19,"cut":false,"hidden":false,"merged":[[6,5,8,5],[16,0,17,0],[12,4,12,5],[9,0,10,0],[9,1,10,1],[9,4,10,4],[13,0,13,6],[14,0,14,6],[15,3,28,7],[0,0,0,6],[3,0,3,6],[1,0,1,6],[2,0,2,6],[4,1,5,1],[4,0,5,0],[4,3,4,5]]}
[]
["Ｃ. 国際的に通用する表現力と論理性を備える．"]
["　（２） 日本語によって論理的な記述，発表，討論ができる．【 論理 】"]
[]
["達成度評価対象","開講年次","達成要件","自己デザイン",null,null,"今期終了時の目標"]
[null,null,"達成率","実施率","成績換算点","活動点","達成要件の達成率"]
["《エンジニアのためのリテラシー》",1,{"$f":"専門!R5/専門!D5","v":1},{"$f":"C7","v":1},{"$f":"IF(専門!S5=B7,専門!T5,専門!T5*0.8)","v":30},"――",{"$f":"(専門!R5+専門!V5)/専門!D5","v":1}]
["《機械工学実験Ⅰ》",3,0,0,0,null,0]
["《機械工学実験Ⅱ》",3,0,0,0,null,0]
["《卒業研究》（一般），\n《卒業プロジェクト》（地域）",4,"――",{"$f":"IF(専門!R91+専門!V91>=1,1,0)","v":0},"――",{"$f":"専門!R91+専門!V91","v":0},"――"]
[null,null,"――",{"$f":"IF(科目外!E15>=1,1,0)","v":0},null,{"$f":"科目外!E15","v":0},"――"]
[null,"合計",{"$f":"SUM(C7:C11)","v":1},{"$f":"SUM($D$7:$D$11)","v":1},{"$f":"IF(D12=0,0,(D7*E7+D8*E8+D9*E9)/D12)","v":30},{"$f":"IF((F10+F11)*4>=10,10,(F10+F11)*4)","v":0},{"$f":"SUM(G7:G11)","v":1}]
[null,"満点",3,5,40,null,3]
[]
[]
["達成要件","達成率 (%)",{"$f":"INT(C12/C13*100+0.5)","v":33},"・『実施率』は達成度評価対象項目ごとの評価基準より算出している．\n・『成績換算点』は項目ごとの全ての単位取得科目の成績の平均であり，各最大30点となる．\n・必修科目の『成績換算点』は開講年次に単位取得した場合に成績点の100％として，それ以外は80％として与えている．\n・《卒業研究》（一般），《卒業プロジェクト》（地域）の『活動点』は卒業論文の単位取得，投稿論文の執筆，学会発表（予定）で1件につきそれぞれ1点，2点および1点とし，合計はそれらの和を4倍して最大10点までを与えている．\n・『成績換算点』の合計は『成績換算点』の『実施率』加重平均として与えている．\n・『評価点』は，（『成績換算点』＋『活動点』）の最大40点を100点換算して与えている．"]
["自己デザイン","実施率 (%)",{"$f":"INT(D12/D13*100+0.5)","v":20}]
[null,"評価点",{"$f":"INT(E12+F12+0.5)*10/4","v":75}]
["今期の目標","達成率 (%)",{"$f":"INT(G12/G13*100+0.5)","v":33}]

{"sheet":"【 自発 】","index":26,"n_rows":24,"n_cols":8,"rows_kept":24,"cut":false,"hidden":false,"merged":[[7,1,8,1],[11,1,12,1],[13,1,14,1],[6,5,15,5],[20,3,23,8],[17,5,17,6],[18,0,18,7],[19,0,19,7],[7,0,15,0],[15,1,15,2],[21,0,22,0],[9,1,10,1],[0,0,0,7],[1,0,1,7],[2,0,2,7],[3,0,3,7],[4,0,5,0],[4,1,5,1],[4,2,5,2],[4,4,4,6]]}
[]
["Ｄ. 自律的に判断し，問題を解決する能力を有する．"]
["　（１） 継続的に学習し，能力開発を自発的に行うことができる．【 自発 】"]
[]
["達成度評価対象","年次","学期","達成要件","自己デザイン",null,null,"今期終了時の目標"]
[null,null,null,"達成率","実施率","成績換算点","活動点","達成要件の達成率"]
["全科目","――","――",{"$f":"IF(SUM(英語!R5:R10)+SUM(教養!R5:R194)+SUM(専門!R5:R102)>=134,1,(SUM(英語!R5:R10)+SUM(教養!R5:R194)+SUM(専門!R5:R102))/134)","v":0.5149253731343284},{"$f":"D7","v":0.5149253731343284},"――","――",{"$f":"IF(SUM(英語!R5:R10)+SUM(教養!R5:R194)+SUM(専門!R5:R102)+SUM(英語!V5:V10)+SUM(教養!V5:V194)+SUM(専門!V5:V102)>=134,1,(SUM(英語!R5:R10)+SUM(教養!R5:R194)+SUM(専門!R5:R102)+SUM(英語!V5:V10)+SUM(教養!V5:V194)+SUM(専門!V5:V102))/134)","v":0.76865671641791045}]
["達成度総合評価報告・学習計画書",1,"前",{"$f":"科目外!G18","v":1},{"$f":"D8","v":1},null,{"$f":"E8","v":1},{"$f":"(科目外!G18+科目外!J18)","v":1}]
[null,null,"後",{"$f":"科目外!G19","v":1},{"$f":"D9","v":1},null,{"$f":"E9","v":1},{"$f":"(科目外!G19+科目外!J19)","v":1}]
[null,2,"前",{"$f":"科目外!G20","v":1},1,null,1,{"$f":"(科目外!G20+科目外!J20)","v":1}]
[null,null,"後",{"$f":"科目外!G21","v":0},0,null,0,{"$f":"(科目外!G21+科目外!J21)","v":1}]
[null,3,"前",{"$f":"科目外!G22","v":0},0,null,0,{"$f":"(科目外!G22+科目外!J22)","v":0}]
[null,null,"後",{"$f":"科目外!G23","v":0},0,null,0,{"$f":"(科目外!G23+科目外!J23)","v":0}]
[null,4,"前",{"$f":"科目外!G24","v":0},0,null,0,{"$f":"(科目外!G24+科目外!J24)","v":0}]
[null,null,"後",{"$f":"科目外!G25","v":0},0,null,0,{"$f":"(科目外!G25+科目外!J25)","v":0}]
[null,"4年次に卒業研究に着手し，4年次終了時に卒業する.",null,"――",{"$f":"科目外!E27/3","v":0.33333333333333331},null,{"$f":"IF(科目外!E27>=2,2,科目外!E27)","v":1},"――"]
[null,null,"合計",{"$f":"SUM(D7:D15)","v":3.5149253731343286},{"$f":"SUM(E7:E16)","v":3.8482587064676621},"――",{"$f":"SUM(G8:G16)","v":4},{"$f":"SUM(H7:H15)","v":4.7686567164179099}]
[null,null,"満点",9,10,10,null,9]
[]
[]
["達成要件","達成率 (%)",{"$f":"INT(D17/D18*100+0.5)","v":39},"・『実施率』は達成度評価対象項目ごとの評価基準より算出している．\n・『活動点』は達成度総合評価報告書・学習計画書の提出で1点を与え，4年次の卒業研究着手および4年次終了時の卒業（予定）に対して最大2点を与えている．\n・『評価点』は，『活動点』の最大10点を100点換算して与えている．"]
["自己デザイン","実施率 (%)",{"$f":"INT(E17/E18*100+0.5)","v":38}]
[null,"評価点",{"$f":"G17*10","v":40}]
["今期の目標","達成率 (%)",{"$f":"INT(H17/H18*100+0.5)","v":53}]

{"sheet":"【 計画 】","index":27,"n_rows":18,"n_cols":6,"rows_kept":18,"cut":false,"hidden":false,"merged":[[15,0,16,0],[14,3,24,6],[12,0,12,5],[0,0,0,5],[1,0,1,5],[2,0,2,5],[3,0,3,5],[4,0,5,0],[4,2,4,4],[13,0,13,5],[7,0,8,0],[11,3,11,4]]}
[]
["D. 自律的に判断し，問題を解決する能力を有する．"]
["　（２） 種々の条件の下で問題解決の可能性を追求し，計画的に目標を達成することができる．【 計画 】"]
[]
["達成度評価対象","達成要件","自己デザイン",null,null,"今期終了時の目標"]
[null,"達成率","実施率","成績換算点","活動点","達成要件の達成率"]
["《創造設計製図演習》（一般）\n《地域創生課題セミナーⅠ》（地域）",{"$f":"専門!R67/専門!D67+専門!R95/専門!D95","v":0},{"$f":"B7","v":0},{"$f":"IF(専門!S67=3,専門!T67,0.8*専門!T67)+IF(専門!S95=3,専門!T95,専門!T95*0.8)","v":0},"――",{"$f":"(専門!R67+専門!V67)/専門!D67+(専門!R95+専門!V95)/専門!D95","v":0}]
["《卒業研究》（一般）\n《卒業プロジェクト》（地域）",{"$f":"科目外!E28","v":0},{"$f":"B8","v":0},"――","――",{"$f":"科目外!H28","v":0}]
[null,{"$f":"IF(科目外!E29>=450,1,科目外!E29/450)","v":0},{"$f":"B9","v":0},"――",{"$f":"IF(科目外!E29<450,0,(科目外!E29-450)/150)","v":0},{"$f":"IF(科目外!H29>=450,1,科目外!H29/450)","v":0}]
["卒業研究記録",{"$f":"科目外!E30","v":0},{"$f":"科目外!H30","v":0},"――","――",{"$f":"科目外!H30","v":0}]
["合計",{"$f":"SUM($B$7:$B$10)","v":0},{"$f":"SUM(C7:C10)","v":0},{"$f":"D7","v":0},{"$f":"E9","v":0},{"$f":"SUM(F7:F10)","v":0}]
["満点",4,4,40,null,4]
[]
[]
["達成要件","達成率 (%)",{"$f":"INT(B11/B12*100+0.5)","v":0},"・『実施率』は達成度評価対象項目ごとの評価基準より算出している．\n・『成績換算点』は項目ごとの全ての単位取得科目の成績の平均であり，各最大30点となる．\n・必修科目の『成績換算点』は開講年次に単位取得した場合に成績点の100％として，それ以外は80％として与えている．\n・『活動点』は450時間以上の卒業研究の実施に対して与えられ，最大10点(1950時間に相当)としている．\n・『評価点』は，（『成績換算点』＋『活動点』）の最大40点を100点換算して与えている．"]
["自己デザイン","実施率 (%)",{"$f":"INT(C11/C12*100+0.5)","v":0}]
[null,"評価点",{"$f":"INT(D11+E11+0.5)*10/4","v":0}]
["今期の目標","達成率 (%)",{"$f":"INT(F11/F12*100+0.5)","v":0}]

{"sheet":"【 ﾘｰﾀﾞｰ 】","index":28,"n_rows":23,"n_cols":8,"rows_kept":23,"cut":false,"hidden":false,"merged":[[16,5,16,6],[19,3,31,8],[6,4,6,6],[6,2,7,2],[6,0,7,1],[8,0,8,1],[20,0,21,0],[9,0,9,1],[10,0,10,1],[11,0,11,1],[14,0,14,1],[5,0,5,6],[0,0,0,6],[1,0,1,6],[2,0,2,6],[3,0,3,6],[4,0,4,7]]}
[]
["Ｄ. 自律的に判断し，問題を解決する能力を有する．"]
["　（３） チームを構成してリーダーシップを発揮できる．【 ﾘｰﾀﾞｰ 】"]
[]
["解説 ： ここで言うリーダーシップとは，演習や実習においては，班長としての役目を責任を持って果たすことで，それらの円滑な実施と目的を遂行する能力を，また，カリキュラム外では，他分野の人とチームを構成し，協働してチームの目的を遂行する能力を言う．特に，後者については，自発的学習としてこれを行うことを強く求める．"]
[]
["達成度評価対象",null,"開講年次","達成要件","自己デザイン",null,null,"今期終了時の目標"]
[null,null,null,"達成率","実施率","成績換算点","活動点","達成要件の達成率"]
["《機械加工法及び実習A・B》",null,2,{"$f":"(専門!R61+専門!R62)/(専門!D61+専門!D62)","v":1},{"$f":"D9","v":1},{"$f":"IF(SUM(専門!R61:R62)=0,0,(IF(専門!S61=C9,専門!T61,専門!T61*0.8)+IF(専門!S62=C9,専門!T62,専門!T62*0.8))/SUM(専門!R61:R62))","v":30},"――",{"$f":"(専門!R61+専門!V61+専門!R62+専門!V62)/(専門!D61+専門!D62)","v":1}]
["《機械工学実験Ⅰ》",null,3,{"$f":"専門!R68/専門!D68","v":0},{"$f":"D10","v":0},{"$f":"IF(専門!S68<=3,専門!T68,専門!T68*0.8)","v":0},"――",{"$f":"(専門!R68+専門!V68)/専門!D68","v":0}]
["《機械工学実験Ⅱ》",null,3,{"$f":"専門!R69/専門!D69","v":0},0,{"$f":"IF(専門!S69<=3,専門!T69,専門!T69*0.8)","v":0},"――",{"$f":"(専門!R69+専門!V69)/専門!D69","v":0}]
["《創造設計製図演習》（一般）\n《地域創生課題セミナーⅠ》（地域）",null,3,{"$f":"専門!R67/専門!D67+専門!R95/専門!D95","v":0},0,{"$f":"IF(専門!S67+専門!S95<=3,専門!T67+専門!T95,(専門!T67+専門!T95)*0.8)","v":0},"――",{"$f":"(専門!R67+専門!V67)/専門!D67+(専門!R95+専門!V95)/専門!D95","v":0}]
["実践教養科目","｢リーダーシップと経営戦略｣に属する科目","――","――",{"$f":"IF(SUM(教養!R15:R25)>=2,1,SUM(教養!R15:R25)/2)","v":1},{"$f":"IF(SUM(教養!R15:R45)=0,0,SUM(教養!U15:U45)/SUM(教養!R15:R45))","v":27.5},{"$f":"IF(SUM(教養!R15:R45)<=2,0,SUM(教養!R15:R45)-2)","v":8},"――"]
["高年次配当科目","「国際連携プロジェクトⅠ」および「国際連携プロジェクトⅡ」","――","――",{"$f":"IF(SUM(教養!R190:R191)>=2,1,SUM(教養!R190:R191)/2)","v":0},{"$f":"IF(SUM(教養!R190:R191)=0,0,SUM(教養!U190:U191)/SUM(教養!R190:R191))","v":0},{"$f":"IF(SUM(教養!R190:R191)<=2,0,SUM(教養!R190:R191)-2)","v":0},"――"]
["他分野の人と協働して目的を遂行するプロジェクト（学生プロジェクト等）",null,"――","――",{"$f":"科目外!E31/8","v":0.375},"――",{"$f":"科目外!E31","v":3},"――"]
[null,null,"合計",{"$f":"SUM(D9:D15)","v":1},{"$f":"SUM($E$9:$E$15)","v":2.375},{"$f":"IF(SUM(E9:E14)=0,0,(E9*F9+E10*F10+E11*F11+E12*F12+E13*F13+E14*F14)/SUM(E9:E14))","v":28.75},{"$f":"IF(SUM(G13:G15)>=10,10,SUM(G13:G15))","v":10},{"$f":"SUM($H$9:$H$15)","v":1}]
[null,null,"満点",4,7,40,null,4]
[]
[]
["達成要件","達成率 (%)",{"$f":"INT(D16/D17*100+0.5)","v":25},"・『実施率』は達成度評価対象項目ごとの評価基準より算出している．\n・『成績換算点』は項目ごとの全ての単位取得科目の成績の平均であり，各最大30点となる．\n・必修科目の『成績換算点』は開講年次に単位取得した場合に成績点の100％として，それ以外は80％として与えている．\n・「他分野の人と協働して目的を遂行するプロジェクト」の『実施率』は全8半期に対する活動を行った半期数の割合として計算している．\n・『活動点』は実践教養科目と高年次配当科目の各関連科目の総取得単位数がそれぞれ2単位より多い場合に，1単位につき1点を付与するほか，「他分野の人と協働して目的を遂行するプロジェクト」を行った半期数として与え，合計で最大10点としている．\n・『成績換算点』の合計は『実施率』加重平均として与えている．\n・『評価点』は，（『成績換算点』＋『活動点』）の最大40点を100点換算して与えている．"]
["自己デザイン","実施率 (%)",{"$f":"INT(E16/E17*100+0.5)","v":34}]
[null,"評価点",{"$f":"INT(F16+G16+0.5)*10/4","v":97.5}]
["今期の目標","達成率 (%)",{"$f":"INT(H16*100/H17+0.5)","v":25}]

{"sheet":"変更履歴","index":29,"n_rows":40,"n_cols":3,"rows_kept":40,"cut":false,"hidden":false,"merged":[[19,2,21,2],[38,0,38,2],[39,0,39,2]]}
["【 学習・教育目標 】","【 達成度自己評価表 】","【 達成度自己評価報告書 】"]
["　　平成１４年　３月２７日　制定","　　平成１５年１２月１１日　制定","　　平成１５年１２月１１日　制定"]
["　　平成１５年１０月　２日　改訂","　　平成１６年　１月１５日　改訂","　　平成２５年　３月２７日　改訂"]
["　　平成２３年１２月２２日　改訂 （補足追加）","　　平成１７年　１月２７日　改訂","　　平成２６年　３月　４日　改訂"]
["　　平成２５年　３月２７日　改訂 （補足削除，解説追加）","　　平成１８年　３月３０日　改訂","　　平成２７年　１月２９日　改訂"]
["　　令和　４年　３月３１日　改訂 （卒業時の人物像変更）","　　平成１９年　３月２９日　改訂","　　平成２８年　４月　１日　改訂"]
["　　令和　５年　１月２６日　改定 （教育理念削除）","　　平成２１年　３月３０日　改訂"]
[null,"　　平成２２年　２月１８日　改訂"]
["【 学習・教育到達目標 】","　　平成２５年　３月２７日　改訂","【 学習目標・学習計画書 】"]
["　　平成２８年　６月　１日　改訂 （学習・教育目標を改称）","　　平成２６年　３月　４日　改訂","　　平成１６年　３月１０日　制定"]
["　　令和　２年　１月３０日　改定 （前，後文追加・解説一部変更）","　　平成２７年　１月２９日　改訂","　　平成１９年　３月２９日　改訂"]
[null,"　　平成２８年　４月　１日　改訂","　　平成２２年　２月１８日　改訂"]
["【 達成度評価基準 】","　　平成２８年　６月　１日　改訂","　　平成２５年　３月２７日　改訂"]
["　　平成１５年１０月　２日　制定","　　平成２９年　３月３１日　改訂","　　平成２６年　３月　４日　改訂"]
["　　平成１６年　１月１５日　改訂","　　平成３１年　３月３１日　改訂","　　平成２７年　１月２９日　改訂"]
["　　平成１７年　１月２７日　改訂","　　令和　２年　1月３０日　改定","　　平成２８年　４月　１日　改訂"]
["　　平成１８年　１月２６日　改訂","　　令和　３年　３月３１日　改定"]
["　　平成１９年　１月１８日　改訂","　　令和　４年　３月３１日　改定"]
["　　平成２１年　３月３０日　改訂","　　令和　５年　1月２６日　改定","【 達成度総合評価報告・学習計画書 】"]
["　　平成２２年　２月１８日　改訂","　　令和　6年　３月３１日　改定","　　平成２８年　６月　１日　改訂\n　　　 （達成度自己評価報告書，\n　　　　学習目標・学習計画書を統合）"]
["　　平成２５年　３月２７日　改訂","　　令和　7年　３月３１日　改定"]
["　　平成２５年　６月２７日　改訂"]
["　　平成２６年　３月　４日　改訂",null,"　　平成３１年　３月３１日　改訂"]
["　　平成２７年　１月２９日　改訂",null,"　　令和　６年  ３月３１日　改訂"]
["　　平成２８年　４月　１日　改訂"]
[]
["【 達成度総合評価基準 】"]
["　　平成２８年　６月　１日　改訂 （達成度評価基準を改称）"]
["　　平成２９年　３月３１日　改訂 （略称追加）"]
["　　平成３１年　３月３１日　改訂 （解説一部変更）"]
["　　令和　２年　1月３０日　改定 （倫理・解説一部変更）"]
["　　令和　３年　３月３１日　改定 （科目名（データサイエンス）変更）"]
["　　令和　４年　３月３１日　改定 "]
["　　令和　５年　１月２６日　改定 (教養科目一部変更)"]
["　　令和　6年　３月３１日　改定 (カリキュラム変更に対応)"]
["　　令和　7年　３月３１日　改定 (教養科目・専門科目一部変更)"]
[]
[]
["　　　　　　　　　　　　　　　　　　　　　　　　　　　　　　　発効日　令和　7年　４月　１日"]
["　　　　　　　　　　　　　　　　　　　　　　　　　　　　　　　発行者　京都工芸繊維大学　工芸科学部　設計工学域　機械工学課程"]